Cogmind - Beta 16.1 @@@ ROGUE MODE // 2026.04.23 @ 23:54:07 Player: the Result: Establishing 0b11! Performance ------------- Evolutions (9) 4500 Regions Visited (28) 5600 Robots Destroyed (635) 3175 Value Destroyed (31730) 31730 Prototype IDs (383) 7660 Alien Tech Used (2) 400 Bonus (48376) 48376 TOTAL SCORE: 101441 Bonus ------- Triggered High Security 500 High Alert Combat Kills 8743 Follower Combat Kills 1801 Network Hubs Disabled 200 Met Zhirov 300 Met Warlord at Base 500 MAIN.C Attacked Warlord 500 Warlord Defense Kills 6346 Met R17 at Cetus 500 Met R17 at Research 2000 Met Warlord at Research 2000 Invited to Help at Command 2000 Destroyed MAIN.C Guards 500 Met MAIN.C 5000 Destroyed MAIN.C Shell 5000 Destroyed MAIN.C 10000 Met Warlord at Command 2000 Win 3000 Friendly Fire -2514 Cogmind --------- Core Integrity 1098/1600 Matter 267/300 Energy 2035/2065 System Corruption 0% Temperature Cool (34) Movement Walking (76) Location 0b11 Command Parts ------- > --- POWER (4) -------- Multi-Quantum Reactor > --- PROPULSION (8) --- Myomer-Biometal Exoskeleton > --- UTILITY (4) ------ Armored Scrap Engine 2N-1CE's Frost Array Heavy Servo Lattice > --- WEAPON (9) ------- RU-N14's Throwing Claymores v3 Hyp. Entropic Rail Construct/C Hvy. Thermal Neutralizer Construct/C > --- INVENTORY (5) ---- Seismic Detector Weapon Mount Experimental Weapon Cycler Advanced Force Field Z-bomb Delivery System Peak State ------------ > --- POWER ------------ Multi-Quantum Reactor > --- PROPULSION ------- Myomer-Biometal Exoskeleton > --- UTILITY ---------- Armored Scrap Engine 2N-1CE's Frost Array Heavy Servo Lattice > --- WEAPON ----------- Z-bomb Delivery System Hyp. Entropic Rail Construct/C Hvy. Thermal Neutralizer Construct/C > --- INVENTORY -------- Experimental Coolant Injector Experimental Coolant Injector Guided Micro-nuke Launcher [Rating: 217] Favorites ----------- Power Constructs Engine Ion Engine Power Core Light Nuclear Core Reactor Constructs Propulsion Constructs Treads Light Treads Leg Constructs Wheel Wheel Hover Unit Aerolev Unit Utility Armored Scrap Engine Device Armored Scrap Engine Storage Huge Storage Unit Processor Experimental Core Analyzer Hackware Hacking Suite Protection Hardened Medium Armor Plating Weapon Constructs Energy Gun Subdweller Laser Energy Cannon Constructs Ballistic Gun Enhanced Autogun Ballistic Cannon Flak Cannon Launcher Compact Tesla Bomb Launcher Special Weapon RU-N14's Throwing Claymores v3 Piercing Weapon Plasma Lance Build | -11 -10 -10 -8 -8 -8 -6 -6 -6 -6 -6 -5 -5 -5 -5 -4 -4 -4 -4 -4 -4 -4 -3 -3 -3 -2 -2 -1 -1 ------- Run | Yrd Mat Sub Mat Sto Rec Fac Ext Cet Arc Hub Fac Upp Upp Zhi Pro Fac Was Fac Upp Upp War Pro Res Qua Res Tes Acc Com Slots Evolved 18 | . . . 4 . . 4 . . . . 2 . . . . 2 . . . . . . 2 . 2 . 2 . Power 3 | . . . . . . 1 . . . . . . . . . 1 . . . . . . 1 . . . . . Propulsion 6 | . . . 2 . . 2 . . . . 1 . . . . 1 . . . . . . . . . . . . Utility 2 | . . . 2 . . . . . . . . . . . . . . . . . . . . . . . . . Weapon 7 | . . . . . . 1 . . . . 1 . . . . . . . . . . . 1 . 2 . 2 . Parts Attached 175 | 7 10 11 28 18 1 3 5 . . . 5 . 1 2 2 3 1 10 3 . 13 1 12 1 14 6 4 14 Power 11 | 1 3 2 3 1 . . . . . . . . . . . . . . . . . . . . 1 . . . Engine 8 | 1 2 2 2 1 . . . . . . . . . . . . . . . . . . . . . . . . Core 2 | . 1 . 1 . . . . . . . . . . . . . . . . . . . . . . . . . Reactor 1 | . . . . . . . . . . . . . . . . . . . . . . . . . 1 . . . Propulsion 24 | 2 . 2 12 8 . . . . . . . . . . . . . . . . . . . . . . . . Treads 7 | 2 . 2 3 . . . . . . . . . . . . . . . . . . . . . . . . . Leg 3 | . . . 1 2 . . . . . . . . . . . . . . . . . . . . . . . . Wheel 13 | . . . 8 5 . . . . . . . . . . . . . . . . . . . . . . . . Hover 1 | . . . . 1 . . . . . . . . . . . . . . . . . . . . . . . . Flight . | . . . . . . . . . . . . . . . . . . . . . . . . . . . . . Utility 80 | 2 2 2 6 2 1 2 5 . . . 5 . 1 2 2 2 1 8 3 . 4 1 5 1 9 3 3 8 Device 56 | 1 . 1 4 1 1 2 3 . . . 3 . 1 1 2 1 1 5 3 . 3 1 5 1 7 3 1 5 Storage 6 | 1 2 1 . . . . 1 . . . 1 . . . . . . . . . . . . . . . . . Processor 8 | . . . . . . . . . . . . . . . . 1 . 1 . . 1 . . . 2 . . 3 Hackware 6 | . . . 1 . . . . . . . 1 . . . . . . 2 . . . . . . . . 2 . Protection 4 | . . . 1 1 . . 1 . . . . . . 1 . . . . . . . . . . . . . . Artifact . | . . . . . . . . . . . . . . . . . . . . . . . . . . . . . Weapon 60 | 2 5 5 7 7 . 1 . . . . . . . . . 1 . 2 . . 9 . 7 . 4 3 1 6 Energy Gun 16 | . . 1 2 3 . . . . . . . . . . . 1 . 1 . . 1 . 1 . 1 2 . 3 Energy Cannon 16 | . 5 1 2 2 . 1 . . . . . . . . . . . . . . 1 . 2 . . 1 . 1 Ballistic Gun 8 | 2 . 1 3 . . . . . . . . . . . . . . . . . 1 . . . 1 . . . Ballistic Cannon 4 | . . . . 1 . . . . . . . . . . . . . . . . . . 2 . . . 1 . Launcher 8 | . . 1 . 1 . . . . . . . . . . . . . 1 . . . . 2 . 2 . . 1 Special Weapon 6 | . . 1 . . . . . . . . . . . . . . . . . . 5 . . . . . . . Impact Weapon . | . . . . . . . . . . . . . . . . . . . . . . . . . . . . . Slashing Weapon . | . . . . . . . . . . . . . . . . . . . . . . . . . . . . . Piercing Weapon 2 | . . . . . . . . . . . . . . . . . . . . . 1 . . . . . . 1 Special Melee Weapon . | . . . . . . . . . . . . . . . . . . . . . . . . . . . . . Unidentified Prototypes 47 | . . . 4 5 1 1 2 . . . . . . 3 . 1 . 7 . . 5 . 4 . 6 5 2 1 Corrupted Parts 1 | . . . . . . . 1 . . . . . . . . . . . . . . . . . . . . . System Corruption 2 | . . . . . . . 2 . . . . . . . . . . . . . . . . . . . . . Parts Lost 19 | . 1 3 4 2 . . 1 . . . . . . . 1 . . 2 . . . 2 . . 2 . . 1 Power 5 | . 1 1 1 . . . 1 . . . . . . . . . . 1 . . . . . . . . . . Propulsion 5 | . . 2 2 1 . . . . . . . . . . . . . . . . . . . . . . . . Utility 5 | . . . 1 . . . . . . . . . . . . . . 1 . . . 1 . . 2 . . . Weapon 4 | . . . . 1 . . . . . . . . . . 1 . . . . . . 1 . . . . . 1 Highest Loss Streak 2 | . 1 1 2 1 . . 1 . . . . . . . 1 . . 1 . . . 1 . . 1 . . 1 To Critical Strikes 2 | . . . . . . . . . . . . . . . 1 . . . . . . . . . 1 . . . Average Backups 16 | 2 8 13 20 23 17 13 13 15 18 18 17 18 18 22 22 19 20 17 19 20 17 18 19 19 22 22 21 12 Power . | . . . 1 1 1 . . 1 2 1 1 1 1 1 1 . . . 2 2 . 1 . . . . . . Propulsion . | . . . 3 6 3 . . . . . . . . . . . . . . . . . . . . 1 . 1 Utility 10 | . 2 5 5 4 5 9 9 11 11 11 13 15 15 18 19 18 17 15 16 16 13 13 14 14 14 14 13 6 Weapon 4 | 1 4 6 9 11 6 3 4 3 5 5 2 2 2 3 1 . 2 . 1 2 3 4 4 5 7 6 7 5 Tool/Special . | . . . . . . . . . . . . . . . . . . . . . . . . . . . . . Unused Backups 165 | 2 3 3 11 1 14 12 4 1 . 1 4 . . . 3 6 . 8 . . 8 1 5 1 11 7 4 55 Power 15 | . . . . . . 2 . 1 . 1 . . . . . 1 . . . . 2 . 1 . . . . 7 Propulsion 13 | 2 . . 2 . 2 3 . . . . . . . . . . . . . . . . . . . 1 1 2 Utility 45 | . 2 1 . . . 5 1 . . . . . . . . 2 . 5 . . 4 . 3 . 5 6 1 10 Weapon 91 | . 1 2 8 1 12 2 3 . . . 4 . . . 3 3 . 3 . . 2 1 1 1 6 . 2 36 Tool/Special 1 | . . . 1 . . . . . . . . . . . . . . . . . . . . . . . . . Average Slot Usage (%) 43 | . 98 99 96 99 61 39 39 40 40 40 35 35 35 34 35 31 31 30 31 31 32 31 33 33 28 30 27 28 Engine 2 | . 9 13 7 9 8 1 1 4 . . . . . . . . . . . . . . . . . . . . Reactor 2 | . . . . . . . . 1 6 6 5 5 5 5 5 4 5 3 5 5 4 3 4 4 4 4 4 4 Treads 3 | . 28 28 6 . . . . . . . 2 5 5 5 5 3 5 1 . . . . . . . . . 1 Leg 2 | . . . . 10 2 2 4 6 6 6 2 . . . . . . 2 . . 1 3 1 . 2 4 4 2 Wheel 2 | . . . 27 24 7 . . . . . . . . . . . . . . . . . . . . . . . Device 10 | . 14 14 18 14 8 12 12 13 13 13 11 11 11 8 11 10 10 9 10 10 9 9 9 9 7 8 7 7 Storage 5 | . 14 14 9 9 9 6 6 6 6 6 5 5 5 5 5 5 5 5 5 5 5 5 4 4 4 4 3 3 Hackware 1 | . . . 8 9 9 . . . . . . . . . . . . . . . . . . . . . . . Energy Cannon 4 | . 22 18 1 13 6 2 . 6 6 6 . . . . . . . 1 . 5 5 5 1 4 1 4 2 3 Ballistic Gun 1 | . 5 4 13 2 . . . . . . . . . . . . . . . . . . . . . . . . Ballistic Cannon 3 | . . . . . 3 3 5 . . . 4 5 5 5 4 5 5 3 4 . . . 2 4 3 4 6 3 Peak Build Rating 217 | 7 10 19 35 36 48 69 102 107 107 109 115 114 115 120 120 120 118 126 117 115 141 132 163 163 183 188 198 217 Average Rating 114 | 6 8 12 30 32 41 59 77 102 107 105 108 109 109 115 111 112 114 116 112 111 123 127 140 159 168 178 175 186 On Entrance 98 | . 7 10 19 32 35 42 69 98 107 107 105 109 109 111 119 110 113 117 117 111 111 132 126 157 157 176 178 174 Avg Prop Armor Cover (%) 9 | . . . 17 6 9 . . . . . . . . . . . . . . . . . . . . . . . Naked Turns . | . . . . . . . . . . . . . . . . . . . . . . . . . . . . . Heaviest Build 236 | 12 32 94 103 112 110 47 118 121 121 121 120 116 116 122 115 111 77 119 114 114 161 151 165 165 201 180 182 236 Greatest Support 408 | 40 40 40 80 38 38 47 139 139 139 139 160 160 160 160 160 160 119 182 182 158 218 193 271 337 337 221 221 408 Greatest Overweight (x) 5 | . . 2 4 3 5 1 . . . . . . . . . . . 1 . . . . 1 . . . . 1 Average Overweight (x) . | . . . 2 2 2 . . . . . . . . . . . . . . . . . . . . . . . Largest Inventory Capacity 25 | 8 15 25 25 25 25 15 25 25 25 25 25 25 25 25 25 25 25 20 20 20 20 20 20 20 25 25 25 25 Average Capacity 21 | 7 9 18 25 25 24 15 17 25 25 25 22 24 25 25 25 20 20 18 20 20 20 20 20 20 24 25 24 24 Most Carried 25 | 5 13 20 25 25 25 15 17 19 19 20 20 18 20 25 24 23 20 20 20 20 20 20 20 20 25 25 25 25 Average Carried 17 | 2 8 15 23 24 18 14 14 16 19 19 18 18 18 22 22 19 20 17 19 20 17 19 19 19 23 24 23 13 Final Capacity 25 | 8 15 25 25 25 15 15 25 25 25 25 20 25 25 25 25 20 20 20 20 20 20 20 20 20 25 25 25 5 Final Carried 25 | 4 13 20 25 25 14 15 16 19 19 19 18 18 20 24 21 20 20 20 20 20 20 19 20 20 25 25 25 5 Scrap Engine Consumption 509 | . . . . . 46 38 28 7 . 4 14 . 1 5 4 25 5 40 2 1 14 6 56 3 55 4 4 147 Constructs Created 7 | . . . . . 3 . 1 . . . . . . . . . . . . . . . . . 1 . . 2 Constructs Modified 226 | . . . . . 15 15 14 1 . 1 8 . . . 5 9 . 23 3 . 4 3 25 2 26 1 2 69 Class Distribution -------------------- 38% | Construct 36% | Generator-Construct 9% | Mutant 8% | Commander-Construct 5% | Scavenger-Mutant Dominant Class ---------------- Mutant | -10/Materials Mutant | -10/Subcaves Scavenger-Mutant | -8/Materials Scavenger-Mutant | -8/Storage Commander-Construct | -8/Recycling Construct | -6/Factory Construct | -6/Extension Construct | -6/Cetus Construct | -6/Archives Construct | -6/Hub_04(d) Construct | -5/Factory Construct | -5/Upper Caves Construct | -5/Upper Caves Commander-Construct | -5/Zhirov Construct | -4/Proximity Caves Construct | -4/Factory Construct | -4/Waste Construct | -4/Factory Construct | -4/Upper Caves Construct | -4/Upper Caves Construct | -4/Warlord Construct | -3/Proximity Caves Generator-Construct | -3/Research Generator-Construct | -3/Quarantine Generator-Construct | -2/Research Generator-Construct | -2/Testing Generator-Construct | -1/Access Generator-Construct | -1/Command Resources | -11 -10 -10 -8 -8 -8 -6 -6 -6 -6 -6 -5 -5 -5 -5 -4 -4 -4 -4 -4 -4 -4 -3 -3 -3 -2 -2 -1 -1 ----------- Run | Yrd Mat Sub Mat Sto Rec Fac Ext Cet Arc Hub Fac Upp Upp Zhi Pro Fac Was Fac Upp Upp War Pro Res Qua Res Tes Acc Com Matter Collected 15677 | 398 273 257 977 584 160 816 1347 284 . 498 506 182 92 77 146 150 74 634 322 256 630 195 884 108 2463 653 659 2052 Remotely . | . . . . . . . . . . . . . . . . . . . . . . . . . . . . . Salvage Created 35529 | 279 688 582 1456 816 678 1005 2057 442 . 902 1998 1050 634 . 474 1514 1750 4739 1017 811 1203 810 2554 461 2087 796 1524 3202 Parts 1467 | 29 48 28 86 58 24 42 79 11 . 32 144 75 33 . 18 75 30 193 41 33 44 32 93 28 76 24 43 48 Haulers Intercepted 25 | . 1 . 3 1 . 1 . . . 1 . . . . . 2 . 6 . . . 1 5 . 1 1 2 . Recyclers Shooed 18 | 1 2 . 1 . 3 1 2 . . 1 2 . . . . 2 . 1 . . . . . . . . 1 1 Parts Field Recycled . | . . . . . . . . . . . . . . . . . . . . . . . . . . . . . Retrieved Matter . | . . . . . . . . . . . . . . . . . . . . . . . . . . . . . Parts Self-Destructed 239 | . . 4 . . . . . . . . . 75 30 . 17 . . . 43 42 . 28 . . . . . . Prevented 4 | . . . . . . . . . . . . . . . . . . . 1 3 . . . . . . . . Parts Restored . | . . . . . . . . . . . . . . . . . . . . . . . . . . . . . Kills | -11 -10 -10 -8 -8 -8 -6 -6 -6 -6 -6 -5 -5 -5 -5 -4 -4 -4 -4 -4 -4 -4 -3 -3 -3 -2 -2 -1 -1 ------- Run | Yrd Mat Sub Mat Sto Rec Fac Ext Cet Arc Hub Fac Upp Upp Zhi Pro Fac Was Fac Upp Upp War Pro Res Qua Res Tes Acc Com Combat Hostiles Destroyed 467 | . 8 9 21 13 6 15 23 7 . 10 27 18 9 . 7 18 6 56 16 13 46 12 26 8 42 10 17 24 Guns 20 | . 4 . 13 2 1 . . . . . . . . . . . . . . . . . . . . . . . Cannons 346 | . 4 9 4 11 5 10 22 5 . 9 23 18 9 . 7 18 6 46 16 13 13 11 14 6 26 7 15 19 AOE 69 | . . . 4 . . 3 1 . . 1 4 . . . . . . . . . 33 1 5 . 13 3 . 1 Classes Destroyed 28 | 3 6 1 3 . . 1 1 . . . 3 . 1 . 1 . 1 1 . . 3 . 1 . . 2 . . Worker 41 | 2 6 . 9 1 . . 1 . . . 6 . . . . . . 9 . . . . 1 1 . 3 1 1 Builder 24 | . . . 3 2 2 2 1 . . 1 3 . . . . 1 . 5 . . . . . . . 1 3 . Tunneler 11 | 7 . . 1 2 . . . . . . . . . . . . . . . . . . 1 . . . . . Hauler 25 | . 1 . 3 1 . 1 . . . 1 . . . . . 2 . 6 . . . 1 5 . 1 1 2 . Recycler 29 | 1 2 . 3 1 5 2 6 . . 2 1 . . . . . . 3 . . . . . . . . 1 2 Carrier 2 | . . . . . . . . . . . 1 . . . . . . . . . . . . . . 1 . . Mechanic 4 | . 1 . . . . . . . . . . . . . . . . . . . 1 . . . . . 1 1 Operator 6 | . 1 . 1 . . . . . . . 1 . . . . . . . . . . . 1 . . 1 . 1 Drone 2 | . . . . . . . . . . . . . . . 2 . . . . . . . . . . . . . Watcher 19 | . 2 . 2 1 . 1 . 2 . . 2 . . . . 3 . 2 . . . . 2 . . . 1 1 Swarmer 100 | . 3 . 8 3 . 6 2 . . . 9 7 3 . . 5 . 17 5 5 5 4 3 . 12 3 . . Saboteur 1 | . . . . . . . . . . . . . . . . . . 1 . . . . . . . . . . Grunt 141 | . 5 . 6 2 . 3 10 . . 8 6 3 2 . 4 9 . 14 8 4 19 5 3 . 6 5 8 11 Brawler 10 | . . . . . . . . . . . 1 1 1 . . . . 1 . 2 3 . . . 1 . . . Duelist 9 | . . . . . . . . . . . 1 1 1 . . . . 2 2 . 1 . . . 1 . . . Protector 3 | . . . . . . . . . . . . . . . . . . . . . 2 . . . . . 1 . Researcher 3 | . . . . . . . . . . . . . . . . . . . . . . . . . . 3 . . Sentry 54 | . . . 6 8 3 2 6 . . 2 2 1 1 . 1 1 . 7 1 2 . . 5 . 4 . 1 1 Demolisher 3 | . . . . . . . . . . . . . . . . . . . . . . . 2 . 1 . . . Hunter 39 | . . . 1 . . 2 1 . . . 4 4 1 . . . . 4 . . 5 . 9 2 4 . 2 . Programmer 45 | . . . . . . 2 . . . . 4 . . . . 2 . 8 . . 7 2 . 6 5 1 5 3 Behemoth 7 | . . . . . . . 2 . . . . 1 . . . 1 . . . . . 1 1 . . . . 1 Compactor 6 | . . . . . . . . . . . . . . . . . 6 . . . . . . . . . . . Cetus Guard 7 | . . . . . . . . 7 . . . . . . . . . . . . . . . . . . . . M Guard 2 | . . . . . . . . . . . . . . . . . . . . . . . . . . . . 2 Combat Programmer 2 | . . . . . . . . . . . . . . . . . . . . . . . . . . . . 2 Striker 7 | . . . . . . . . . . . . . . . . . . . . . 1 . 2 . 4 . . . Executioner 7 | . . . . . . . . . . . . . . . . . . . . . 2 . 1 . 4 . . . Alpha 7 1 | . . . . . . . . . . . . . . . . . . . . . . . . . . 1 . . Subdweller 12 | . . 9 . . 3 . . . . . . . . . . . . . . . . . . . . . . . Thug 4 | . . . . . . . . . . . . . . . . . . 2 . . . . . . . . . 2 Guerrilla 2 | . . . . . . . 2 . . . . . . . . . . . . . . . . . . . . . Wizard 1 | . . . . . . . . . . . . . . . . . . . . . . . . . . . . 1 Mutant 1 | . . . . . . . . . . . . . 1 . . . . . . . . . . . . . . . Sapper 1 | . . . . . . . . . . . . . . . . . . . . . 1 . . . . . . . Best Kill Streak 13 | 4 5 2 12 4 2 4 11 5 . 9 8 6 3 . 3 13 3 13 5 10 13 5 5 4 10 7 10 7 Combat Bots Only 12 | . 3 2 7 3 2 3 8 4 . 7 5 6 3 . 3 12 3 7 5 10 12 5 5 3 9 4 7 5 Max Kills in Single Turn 6 | 1 2 1 2 1 1 3 2 2 . 2 5 3 2 . 1 2 1 3 2 1 6 2 2 3 4 3 2 3 Gunslinging 1 | . . . 1 . . . . . . . . . . . . . . . . . . . . . . . . . Exploded 6 | . . . 1 . . 2 1 . . 1 4 . . . . . . . . . 6 1 2 . 4 3 . 1 Melee . | . . . . . . . . . . . . . . . . . . . . . . . . . . . . . Uniques/NPCs Destroyed 4 | . . . . . . . 1 . . . . . . . . . . . . . . . . . 1 . . 2 A7 (-6/Extension) DD-05H (-2/Research) MAIN.C Shell (-1/Command) MAIN.C (-1/Command) Combat | -11 -10 -10 -8 -8 -8 -6 -6 -6 -6 -6 -5 -5 -5 -5 -4 -4 -4 -4 -4 -4 -4 -3 -3 -3 -2 -2 -1 -1 -------- Run | Yrd Mat Sub Mat Sto Rec Fac Ext Cet Arc Hub Fac Upp Upp Zhi Pro Fac Was Fac Upp Upp War Pro Res Qua Res Tes Acc Com Hostile Shots Fired 2274 | . 58 36 97 77 6 99 234 25 . 25 83 42 19 . 40 101 . 355 62 68 63 91 131 48 147 50 56 261 Missed 753 | . 14 11 19 27 2 46 77 6 . 7 25 11 4 . 10 35 . 95 23 28 28 28 59 20 57 17 25 79 Intercepted 4 | . . . . . . . . . . . . . . . . . . . . . . . . . . . . 4 Hits 1521 | . 44 25 78 50 4 53 157 19 . 18 58 31 15 . 30 66 . 260 39 40 35 63 72 28 90 33 31 182 Melee 11 | . . . . . . . . . . . . . . . . . . . . . . . 8 . 3 . . . Projectile 1510 | . 44 25 78 50 4 53 157 19 . 18 58 31 15 . 30 66 . 260 39 40 35 63 64 28 87 33 31 182 AOE 22 | . . . . . . . . . . . . . . . . 1 . . . . . . 8 . 4 . 1 8 Critical Strikes 67 | . 1 . 1 4 . 2 4 3 . . 2 2 2 . 2 5 . 8 1 1 1 2 3 1 5 3 2 12 Part Disruptions 1 | . . . . . . 1 . . . . . . . . . . . . . . . . . . . . . . Damage Taken 31610 | . 437 588 1007 637 94 758 1576 482 . 365 1218 593 275 560 442 1567 . 4756 685 678 871 1395 2409 490 2767 803 785 5372 Core 3233 | . 71 112 174 108 . 42 265 . . 26 221 38 50 . 19 211 . 448 64 15 20 165 264 63 232 123 74 428 Absorbed by Shields 941 | . . . . . . . 247 . . . . . . . 178 . . . 90 . 258 168 . . . . . . Reduced by Siege Mode 54 | . . . . . . . . . . . . 12 . . . . . 42 . . . . . . . . . . Ignored by Resistances 22 | . . . . 22 . . . . . . . . . . . . . . . . . . . . . . . . Regen/Repaired (Parts) 20852 | . . . 357 . . 336 789 184 . 78 1167 . . 180 1155 1022 100 2811 626 80 869 677 2002 574 2532 135 235 4943 Core Remaining (%) 59 | 100 . 26 . . 48 . . . . 60 . . . . 67 . . . . . . 14 . 74 . 75 . 68 Volleys Fired 1790 | 32 46 95 109 73 38 96 82 28 . 27 53 32 14 2 33 66 22 175 52 40 56 40 133 16 80 33 45 272 Largest 2 | 2 2 2 2 2 2 1 1 1 . 1 1 1 1 1 1 1 1 1 1 1 2 1 2 1 2 2 2 2 Hottest 563 | 40 120 120 120 150 150 160 160 160 . 160 160 160 160 160 160 159 108 108 78 78 80 179 563 557 557 211 211 297 Shots Fired 2223 | 64 92 154 206 135 55 96 81 28 . 27 53 32 14 2 33 66 22 170 52 40 57 40 134 16 102 48 71 333 Gun 447 | 64 32 13 174 50 6 . . . . . . . . . . . . . . . . . . . 6 . . 102 Cannon 1698 | . 60 116 28 85 49 96 81 28 . 27 53 32 14 2 33 66 22 170 52 40 40 39 112 16 89 47 71 230 Launcher 38 | . . 3 4 . . . . . . . . . . . . . . . . . . . 22 . 7 1 . 1 Special 40 | . . 22 . . . . . . . . . . . . . . . . . . 17 1 . . . . . . Kinetic 1268 | 64 32 11 149 57 8 56 49 . . 27 53 32 14 2 33 66 22 134 52 40 22 . 61 7 68 21 56 132 Thermal 512 | . 60 140 53 77 42 31 32 28 . . . . . . . . . 3 . . . . 36 . 6 . . 4 Explosive 34 | . . 3 4 . . . . . . . . . . . . . . . . . 17 1 . . 7 1 . 1 Electromagnetic 324 | . . . . 1 5 9 . . . . . . . . . . . 33 . . . . 35 9 21 26 15 170 Entropic 85 | . . . . . . . . . . . . . . . . . . . . . 18 39 2 . . . . 26 Robot Hit Streak 29 | 7 7 15 27 13 6 5 15 8 . 14 8 12 7 . 6 8 9 10 4 5 7 6 6 8 9 8 6 29 Robot Miss Streak 10 | 2 8 2 6 5 3 6 7 6 . 4 8 3 5 . 10 4 2 7 6 4 3 3 6 2 4 3 6 5 Penetration Max 2 | . . . . . . . . . . 1 2 1 1 . 1 1 . 1 1 1 1 . . 2 1 . 1 1 Secondary Targets 2 | . . . 1 1 . . . . . . . . . . . . . . . . . . . . . . . . Max Gunslinging Chain 1 | . . . 1 1 . . . . . . . . . . . . . . . . . . . . . . . . Shots Hit Robots 1299 | 43 45 76 132 71 34 34 49 26 . 24 44 21 10 . 20 52 20 109 18 24 24 26 58 10 47 26 29 227 Core Hits 795 | 15 25 24 58 33 15 16 37 30 . 28 57 30 18 . 13 27 5 57 12 10 98 9 57 5 40 16 16 44 Critical Kills 7 | . . . 2 . . . . . . . . . . . 2 . . 2 . . . . . 1 . . . . Critical Parts Destroyed 13 | . . . 3 1 . . 3 . . . . . . . 1 1 . 3 . . . . . 1 . . . . Critical Strikes 57 | . . . 5 2 . 1 4 . . . . . . . 3 11 1 11 . 2 1 . 1 2 5 2 4 2 Destroy 27 | . . . 5 2 . . 4 . . . . . . . 3 6 . 5 . . . . . 2 . . . . Blast 29 | . . . . . . 1 . . . . . . . . . 5 1 6 . 2 1 . 1 . 5 2 4 1 Impale 1 | . . . . . . . . . . . . . . . . . . . . . . . . . . . . 1 Melee Attacks 14 | . . . . . . . . . . . . . . . . . . . . . . . . . . . . 14 Impact . | . . . . . . . . . . . . . . . . . . . . . . . . . . . . . Slashing . | . . . . . . . . . . . . . . . . . . . . . . . . . . . . . Piercing 14 | . . . . . . . . . . . . . . . . . . . . . . . . . . . . 14 Sneak Attacks . | . . . . . . . . . . . . . . . . . . . . . . . . . . . . . Combat Hostiles . | . . . . . . . . . . . . . . . . . . . . . . . . . . . . . Follow-up Attacks . | . . . . . . . . . . . . . . . . . . . . . . . . . . . . . Damage Inflicted 135659 | 426 786 1330 2846 1469 964 3405 5991 2055 . 2196 4459 1968 1123 . 1057 4984 2417 15136 2892 3283 12537 4738 8316 2959 13222 5417 7951 21732 Guns 3534 | 426 169 . 2098 541 137 . . . . . . . . . . . . . . . . . . . 145 . . 18 Cannons 114594 | . 611 1330 270 928 827 2842 5548 2055 . 1913 3695 1968 1123 . 1057 4908 2417 14773 2892 3283 4080 4526 7133 2959 10756 4915 7513 20272 Explosions 15591 | . . . 466 . . 563 443 . . 283 675 . . . . . . 227 . . 8258 161 1183 . 2314 474 438 106 Melee 1274 | . . . . . . . . . . . . . . . . . . . . . . . . . . . . 1274 Ramming 416 | . 6 . 12 . . . . . . . 89 . . . . 76 . 136 . . . . . . 7 28 . 62 Kinetic 84753 | 426 169 . 1754 644 194 1291 3686 . . 1913 3695 1968 1123 . 1057 4908 2417 11508 2892 3283 1778 . 4397 2735 10152 3498 6774 12491 Thermal 13754 | . 611 1330 614 825 679 1287 2305 2055 . . 675 . . . . . . 387 . . . . 2297 . 145 . 438 106 Explosive 12081 | . . . 466 . . 408 . . . . . . . . . . . . . . 8258 161 . . 2314 474 . . Electromagnetic 13111 | . . . . . 91 419 . . . 283 . . . . . . . 3105 . . . . 1515 224 604 1417 739 4714 Impact . | . . . . . . . . . . . . . . . . . . . . . . . . . . . . . Slashing 250 | . . . . . . . . . . . . . . . . . . . . . 199 51 . . . . . . Piercing 1274 | . . . . . . . . . . . . . . . . . . . . . . . . . . . . 1274 Entropic 10020 | . . . . . . . . . . . . . . . . . . . . . 2302 4526 107 . . . . 3085 Highest Corruption 15 | . . . 1 1 1 . 3 3 3 4 . . . . . 2 13 12 10 10 10 3 1 4 5 6 4 15 Average Corruption 4 | . . . 1 1 1 . 2 3 3 3 . . . . . 2 9 7 10 10 1 2 1 3 4 5 3 6 Corruption Purged 23 | . . . . . . . . . . . . . . . . . 1 6 . . . . . . . . . 16 Corruption Blocked . | . . . . . . . . . . . . . . . . . . . . . . . . . . . . . Effects 309 | . . . 11 5 15 . 11 5 1 13 . . . . . 2 9 54 17 14 3 8 . 3 42 9 1 86 Message Errors 69 | . . . 3 1 6 . 4 1 . 3 . . . . . 1 2 8 3 1 1 3 . 1 5 3 . 23 Matter Fused 76 | . . . 2 . 3 . 3 1 . 3 . . . . . 1 3 13 5 4 . 3 . . 13 2 . 20 Heat Flow Errors 36 | . . . . 1 2 . . . . . . . . . . . 1 8 3 1 1 1 . 1 7 1 . 9 Energy Discharges 40 | . . . 3 1 3 . 1 1 . 1 . . . . . . 1 7 2 2 1 . . 1 5 1 . 10 Parts Rejected 5 | . . . . . . . . . . . . . . . . . . 1 1 . . . . . 1 . . 2 Parts Fused 1 | . . . . . . . . . . . . . . . . . . . . . . . . . 1 . . . Data Loss (minor) 34 | . . . 2 . . . 1 2 . 2 . . . . . . 1 7 2 4 . . . . 5 1 1 6 Data Loss (major) 17 | . . . . 1 . . 1 . 1 4 . . . . . . . 3 1 1 . . . . 2 . . 3 Alerts 13 | . . . . . 1 . . . . . . . . . . . 1 2 . 1 . 1 . . 1 . . 6 Weapon Failures 18 | . . . 1 1 . . 1 . . . . . . . . . . 5 . . . . . . 2 1 . 7 Overload Shots . | . . . . . . . . . . . . . . . . . . . . . . . . . . . . . Overflow Damage 20159 | . . . 16 15 21 563 562 17 . 36 218 43 16 . 13 238 72 2657 482 606 1038 1029 840 1226 2777 1126 2425 4123 Projectiles 19534 | . . . . 15 21 537 534 17 . 30 106 43 16 . 13 238 72 2588 482 606 911 1029 840 1226 2553 1126 2408 4123 Explosions 622 | . . . 16 . . 26 28 . . 6 112 . . . . . . 66 . . 127 . . . 224 . 17 . Melee 3 | . . . . . . . . . . . . . . . . . . 3 . . . . . . . . . . Knockbacks 175 | . . . . 1 . 11 9 . . 13 18 6 3 . 10 14 1 21 5 5 1 . 4 1 15 2 9 26 Impact 3 | . . . . . . . . . . . . . . . . 1 . 1 . . . . . . 1 . . . Kinetic 152 | . . . . 1 . 10 8 . . 12 18 5 3 . 9 8 1 19 4 4 . . 4 . 14 2 5 25 Secondary 20 | . . . . . . 1 1 . . 1 . 1 . . 1 5 . 1 1 1 1 . . 1 . . 4 1 Self-Inflicted Damage 851 | . . 32 79 . . 69 . . . 102 195 . . . . . . . . . . . 167 . 181 . 26 . Shots 30 | . . 2 3 . . 1 . . . 1 4 . . . . . . . . . . . 14 . 4 . 1 . Rammed 16 | . 1 . 2 . . . . . . . 5 . . . . 7 . . . . . . . . 1 . . . Targets Rammed 30 | . 2 . 2 . . . . . . . 8 . . . . 7 . 7 . . . . . . 1 1 . 2 Kicked 13 | . . . . . . . . . . . 3 . . . . . . 7 . . . . . . . 1 . 2 Crushed 1 | . 1 . . . . . . . . . . . . . . . . . . . . . . . . . . . Highest Temperature 941 | . 303 48 354 360 300 416 428 348 . 407 371 258 258 24 378 283 352 435 244 156 469 514 941 488 538 386 363 734 Average Temperature 107 | . 99 14 75 93 85 122 138 146 . 141 116 82 92 18 127 65 117 96 74 26 149 81 106 186 115 113 83 123 Received Heat Transfer 3974 | . 174 39 288 243 9 162 566 . . 111 54 54 36 . 73 295 . 348 118 42 25 501 102 . 36 81 36 581 Effects 51 | . 7 . . . 1 6 3 1 . 1 2 . . . 1 . . 9 . . 2 1 4 . 8 . 1 4 Shutdowns 9 | . . . . . . 1 1 . . 1 . . . . . . . 2 . . . . 1 . 3 . . . Energy Bleed 15 | . 2 . . . . 3 2 1 . . . . . . 1 . . 2 . . 2 . 1 . . . 1 . Interference 13 | . 4 . . . 1 . . . . . 1 . . . . . . 2 . . . . . . 2 . . 3 Matter Decay 2 | . . . . . . . . . . . 1 . . . . . . 1 . . . . . . . . . . Short Circuit 5 | . . . . . . 1 . . . . . . . . . . . . . . . . 1 . 3 . . . Damage (minor) 7 | . 1 . . . . 1 . . . . . . . . . . . 2 . . . 1 1 . . . . 1 Siege Activations 4 | . . . . . . . . . . . . 3 . . . . . 1 . . . . . . . . . . Total Turns 32 | . . . . . . . . . . . . 21 . . . . . 11 . . . . . . . . . . Longest Duration 17 | . . . . . . . . . . . . 17 . . . . . 11 . . . . . . . . . . Martial Activations . | . . . . . . . . . . . . . . . . . . . . . . . . . . . . . Shielding Activations . | . . . . . . . . . . . . . . . . . . . . . . . . . . . . . Robots Disrupted . | . . . . . . . . . . . . . . . . . . . . . . . . . . . . . Combat Hostiles . | . . . . . . . . . . . . . . . . . . . . . . . . . . . . . Robots Corrupted 34 | . . . . . . 2 . . . . . . . . . . . 13 . . . . 7 2 2 . 3 5 Combat Hostiles 30 | . . . . . . 2 . . . . . . . . . . . 10 . . . . 7 2 2 . 2 5 Parts Fried 101 | . . . . . . 8 1 . . . . . . . . . . 34 . . . . 14 2 6 10 8 18 Impact Corruptions 11 | . . . . . . . . . . . . . . . . . . 1 1 . . . . 3 . . 6 . Robots Melted 3 | . . . . . . . . 2 . . . . . . . . . . . . . . . . 1 . . . Combat Hostiles 3 | . . . . . . . . 2 . . . . . . . . . . . . . . . . 1 . . . Parts Melted 29 | . 3 10 2 . 1 . 5 4 . . 1 . . . . . . . . . 1 1 1 . . . . . Heat Transferred 14235 | . 1295 2812 869 1221 999 557 2026 3108 . . 450 . . . . . . 275 . . . . 50 . 148 . 325 100 Parts Sabotaged . | . . . . . . . . . . . . . . . . . . . . . . . . . . . . . Parts Stolen . | . . . . . . . . . . . . . . . . . . . . . . . . . . . . . Parts Stripped . | . . . . . . . . . . . . . . . . . . . . . . . . . . . . . Power Chain Reactions 6 | . . . . . . . . . . . . . . . . . . . . . . . 1 . . . 4 1 Alert | -11 -10 -10 -8 -8 -8 -6 -6 -6 -6 -6 -5 -5 -5 -5 -4 -4 -4 -4 -4 -4 -4 -3 -3 -3 -2 -2 -1 -1 ------- Run | Yrd Mat Sub Mat Sto Rec Fac Ext Cet Arc Hub Fac Upp Upp Zhi Pro Fac Was Fac Upp Upp War Pro Res Qua Res Tes Acc Com Maximum Alert Level 5 | . . . 1 1 . 2 3 2 . 2 4 . . . . 2 . 4 . . . . 3 3 5 5 5 5 Low Security (%) 26 | 100 100 . 29 47 100 58 25 . 100 77 . . . . . 24 100 9 . . . . 17 . . . . . Level 1 14 | . . . 70 52 . 27 36 31 . 2 2 . . . . 35 . 34 . . . . 13 . 14 . . . Level 2 10 | . . . . . . 13 26 68 . 20 28 . . . . 40 . 16 . . . . 31 74 20 . . . Level 3 9 | . . . . . . . 11 . . . 18 . . . . . . 27 . . . . 37 25 51 16 . . Level 4 5 | . . . . . . . . . . . 49 . . . . . . 12 . . . . . . 5 37 71 1 Level 5 32 | . . . . . . . . . . . . . . . . . . . . . . . . . 7 45 28 95 High Security . | . . . . . . . . . . . . . . . . . . . . . . . . . . . . 2 Max Security . | . . . . . . . . . . . . . . . . . . . . . . . . . . . . . Peak Influence 2210 | 20 105 . 307 267 69 447 887 450 154 636 1588 . . . . 531 174 1357 . . . . 1036 783 1694 2210 2046 1882 Initial 1313 | . . . . 105 69 150 200 395 154 43 304 . . . . 320 174 58 . . . . 175 582 429 942 1313 1308 Average 452 | 2 38 . 204 195 5 170 371 411 142 145 965 . . . . 331 127 595 . . . . 566 679 823 1453 1512 1643 Influence Increases 20023 | 50 313 . 770 532 207 1088 1229 211 . 786 1718 437 284 . 135 953 30 2058 424 332 895 470 1513 281 1871 1468 931 1037 Destroy 0b10 Robot/C 9740 | . 160 . 420 260 60 360 720 160 . 200 560 360 220 . 100 360 . 1120 320 260 880 240 600 160 840 620 320 440 Destroy 0b10 Robot/NC 855 | 50 65 . 110 40 35 30 50 10 . 20 65 . . . 10 30 . 125 . . 15 5 50 5 5 45 50 40 Destroy Leader 1616 | . 36 . 110 104 . 104 92 . . 42 124 50 30 . 10 70 . 216 10 10 . 30 184 30 162 74 66 62 Allied During Kill 621 | . . . . . 47 41 229 27 . . . 27 34 . . . . . 19 17 . . 30 . . 150 . . Successful Hack 265 | . 22 . 10 10 22 8 29 . . . 14 . . . . . . 24 . . . . 12 18 . 30 66 . Select Force Hacks 30 | . . . . . 30 . . . . . . . . . . . . . . . . . . . . . . . Disable Machine 1545 | . 30 . 30 60 . 165 45 . . 330 240 . . . . 75 . 165 . . . . 75 15 90 75 45 105 Anti-Garrison Action 750 | . . . . . . . . . . . 150 . . . . . . . . . . . 300 . 150 . 150 . Destroy Structure 3071 | . . . 30 28 13 170 49 14 . 164 550 . . . . 118 30 348 . . . . 112 8 444 414 189 390 Advance Influence 450 | . . . . . . 150 . . . . . . . . . 300 . . . . . . . . . . . . Partial Spotted 135 | . . . . . . . . . . . . . . . . . . . . . . . 45 45 15 15 15 . Lose Combat Pursuer 945 | . . . 60 30 . 60 15 . . 30 15 . . . 15 . . 60 75 45 . 195 105 . 165 45 30 . Influence Decreases 17848 | 50 313 . 518 605 386 678 932 532 262 288 782 1139 509 631 102 487 445 788 760 432 1130 893 737 554 958 954 1075 908 Entered New Map 8664 | . . . . 147 110 . 210 312 232 81 318 577 163 631 . 13 325 26 502 194 918 683 85 454 334 734 877 738 Time Decay 8132 | 50 309 . 468 428 236 590 482 140 30 207 464 562 326 . 102 374 100 592 238 198 212 190 592 100 604 180 198 160 Search Patrol Dispatched 100 | . . . . . . . . . . . . . . . . 100 . . . . . . . . . . . . Lost Part 144 | . 4 . 40 20 . . 10 . . . . . . . . . . 20 . . . 20 . . 20 . . 10 Lost Ally 483 | . . . 10 10 40 63 80 80 . . . . 20 . . . 20 . 20 40 . . 60 . . 40 . . Purge Threat 325 | . . . . . . 25 150 . . . . . . . . . . 150 . . . . . . . . . . Squads Dispatched 80 | . 1 . 3 4 . 7 6 . . 3 10 . . . . 4 . 10 . 1 . 1 6 1 . 11 5 7 Investigation 5 | . . . . 1 . . 1 . . . 1 . . . . . . . . . . . . . . 1 . 1 Extermination 15 | . . . . . . 5 . . . . 2 . . . . 2 . 3 . . . . . . . 1 1 1 Reinforcement 32 | . 1 . . . . 2 5 . . 2 3 . . . . 1 . 5 . . . . 6 1 . 5 1 . Assault 17 | . . . . . . . . . . . 3 . . . . 1 . 2 . 1 . 1 . . . 1 3 5 Garrison 11 | . . . 3 3 . . . . . 1 1 . . . . . . . . . . . . . . 3 . . Intercept . | . . . . . . . . . . . . . . . . . . . . . . . . . . . . . Searches Triggered 1 | . . . . . . . . . . . . . . . . 1 . . . . . . . . . . . . Construction Impeded 7 | . . . . . . 1 2 . . 1 1 . . . . . . 1 . . . . . . . . 1 . Haulers Reinforced 8 | . . . . . . . . . . 1 . . . . . 1 . 4 . . . . 2 . . . . . Active Scanning Responses . | . . . . . . . . . . . . . . . . . . . . . . . . . . . . . Cargo Convoy Interrupts . | . . . . . . . . . . . . . . . . . . . . . . . . . . . . . Stealth | -11 -10 -10 -8 -8 -8 -6 -6 -6 -6 -6 -5 -5 -5 -5 -4 -4 -4 -4 -4 -4 -4 -3 -3 -3 -2 -2 -1 -1 --------- Run | Yrd Mat Sub Mat Sto Rec Fac Ext Cet Arc Hub Fac Upp Upp Zhi Pro Fac Was Fac Upp Upp War Pro Res Qua Res Tes Acc Com Distress Signals 55 | . 2 . 5 1 . . 2 2 . 2 1 . . . . 1 . 1 . . . . 6 2 4 1 1 24 Communications Jammed 2 | . . . . . . . . . . . . . . . . . . . . . . . . 2 . . . . Distress Signals 2 | . . . . . . . . . . . . . . . . . . . . . . . . 2 . . . . Times Spotted 669 | . 15 9 35 19 6 27 38 9 . 17 28 11 12 . 8 23 6 76 22 8 66 27 41 21 57 27 27 34 Peak Tracking Total 16 | . 4 2 6 4 2 3 10 5 . 6 7 4 4 . 4 5 2 7 9 7 16 14 5 6 7 6 10 4 Tactical Retreats 40 | . . . 2 2 . 3 1 . . 2 1 . . . 1 . . 3 4 2 . 4 5 . 8 1 1 . Traps | -11 -10 -10 -8 -8 -8 -6 -6 -6 -6 -6 -5 -5 -5 -5 -4 -4 -4 -4 -4 -4 -4 -3 -3 -3 -2 -2 -1 -1 ------- Run | Yrd Mat Sub Mat Sto Rec Fac Ext Cet Arc Hub Fac Upp Upp Zhi Pro Fac Was Fac Upp Upp War Pro Res Qua Res Tes Acc Com Traps Triggered 24 | . . . 2 . . 1 5 . . . . . . . . 2 . 4 . . 1 . 3 1 . 2 . 3 Indirectly . | . . . . . . . . . . . . . . . . . . . . . . . . . . . . . Trap Hack Attempts . | . . . . . . . . . . . . . . . . . . . . . . . . . . . . . Triggered . | . . . . . . . . . . . . . . . . . . . . . . . . . . . . . Disarmed . | . . . . . . . . . . . . . . . . . . . . . . . . . . . . . Reprogrammed . | . . . . . . . . . . . . . . . . . . . . . . . . . . . . . Reused . | . . . . . . . . . . . . . . . . . . . . . . . . . . . . . Traps Extracted . | . . . . . . . . . . . . . . . . . . . . . . . . . . . . . Installed . | . . . . . . . . . . . . . . . . . . . . . . . . . . . . . Triggered . | . . . . . . . . . . . . . . . . . . . . . . . . . . . . . Machines | -11 -10 -10 -8 -8 -8 -6 -6 -6 -6 -6 -5 -5 -5 -5 -4 -4 -4 -4 -4 -4 -4 -3 -3 -3 -2 -2 -1 -1 ---------- Run | Yrd Mat Sub Mat Sto Rec Fac Ext Cet Arc Hub Fac Upp Upp Zhi Pro Fac Was Fac Upp Upp War Pro Res Qua Res Tes Acc Com Machines Disabled 123 | . 2 1 2 4 . 11 7 . . 22 17 2 2 1 . 5 . 11 1 1 2 . 7 1 7 6 4 7 Max in Single Turn 16 | . 1 1 1 1 . 4 1 . . 16 6 2 1 1 . 1 . 3 1 1 1 . 1 1 2 1 1 1 Garrison Access 9 | . . . . . . . . . . . 1 . . . . 1 . 1 . . . . 2 . 3 . 1 . Network Hub 1 | . . . . . . . . . . 1 . . . . . . . . . . . . . . . . . . Energy Cycler 1 | . . . . . . . 1 . . . . . . . . . . . . . . . . . . . . . Machines Repaired . | . . . . . . . . . . . . . . . . . . . . . . . . . . . . . Machines Dismantled . | . . . . . . . . . . . . . . . . . . . . . . . . . . . . . Machines Sabotaged . | . . . . . . . . . . . . . . . . . . . . . . . . . . . . . Overloaded Fab Kills . | . . . . . . . . . . . . . . . . . . . . . . . . . . . . . Hacking | -11 -10 -10 -8 -8 -8 -6 -6 -6 -6 -6 -5 -5 -5 -5 -4 -4 -4 -4 -4 -4 -4 -3 -3 -3 -2 -2 -1 -1 --------- Run | Yrd Mat Sub Mat Sto Rec Fac Ext Cet Arc Hub Fac Upp Upp Zhi Pro Fac Was Fac Upp Upp War Pro Res Qua Res Tes Acc Com Machines Accessed 109 | . 4 1 10 12 11 11 7 . . 4 6 . 1 4 . 2 . 10 . . 4 . 11 3 . 3 3 2 Terminals 67 | . 4 . 7 11 6 6 6 . . 4 3 . . . . . . 4 . . . . 7 3 . 2 2 2 Fabricators 6 | . . . . . . 1 . . . . 2 . . . . . . 2 . . . . 1 . . . . . Repair Stations 2 | . . . 2 . . . . . . . . . . . . . . . . . . . . . . . . . Recycling Units 14 | . . . 1 . 4 4 1 . . . 1 . . . . 1 . 1 . . . . 1 . . . . . Scanalyzers 3 | . . . . . . . . . . . . . . . . . . 1 . . . . . . . 1 1 . Garrison Access 6 | . . . . 1 . . . . . . . . . . . 1 . 2 . . . . 2 . . . . . Total Hacks 279 | . 14 1 35 31 32 25 14 . . 7 15 . 1 17 . 4 . 24 . . 10 . 20 8 . 9 10 2 Successful 136 | . 8 1 18 14 20 10 10 . . 2 5 . 1 17 . 2 . 8 . . 10 . 2 2 . 2 4 . Failed 141 | . 6 . 17 16 11 15 4 . . 5 10 . . . . 2 . 16 . . . . 18 6 . 7 6 2 Catastrophic 26 | . . . 1 1 1 . . . . 2 2 . . . . . . 5 . . . . 7 2 . 2 1 2 Database Lockouts 2 | . . . . 1 1 . . . . . . . . . . . . . . . . . . . . . . . Manual 125 | . 13 . 16 22 27 5 6 . . 5 7 . . . . . . 5 . . . . 7 . . 8 . 4 Terminals 172 | . 14 . 22 29 21 14 13 . . 7 9 . . . . . . 7 . . . . 10 8 . 8 8 2 Fabricators 17 | . . . . . . 1 . . . . 5 . . . . . . 8 . . . . 3 . . . . . Repair Stations 12 | . . . 12 . . . . . . . . . . . . . . . . . . . . . . . . . Recycling Units 31 | . . . 1 . 9 10 1 . . . 1 . . . . 3 . 1 . . . . 5 . . . . . Scanalyzers 7 | . . . . . . . . . . . . . . . . . . 4 . . . . . . . 1 2 . Garrison Access 9 | . . . . 2 . . . . . . . . . . . 1 . 4 . . . . 2 . . . . . Terminal Hacks 71 | . 2 1 2 9 6 5 7 . . 1 2 . 1 17 . . . 2 . . 10 . . 2 . 1 3 . Record 15 | . . . . . . . . . . . . . . 5 . . . . . . 9 . . . . . 1 . Part Schematic 5 | . . . . . . . 1 . . . . . . 4 . . . . . . . . . . . . . . Robot Analysis 6 | . . . . . . . . . . . . . . 4 . . . . . . . . . 1 . . 1 . Prototype ID Bank 9 | . . . . 1 3 . 1 . . . . . . 4 . . . . . . . . . . . . . . Open Door 5 | . . . . 3 . . . . . . . . 1 . . . . . . . 1 . . . . . . . Branch Access Points 5 | . . . 1 . . 1 . . . . 1 . . . . . . 1 . . . . . . . . 1 . Terminal Index 1 | . 1 . . . . . . . . . . . . . . . . . . . . . . . . . . . Alert Level 4 | . . . . . 1 . 2 . . . . . . . . . . . . . . . . 1 . . . . Unreport Threat 3 | . . . . . . 1 1 . . . . . . . . . . 1 . . . . . . . . . . Locate Traps 6 | . 1 . . 1 . 1 1 . . 1 1 . . . . . . . . . . . . . . . . . Recall Investigation 1 | . . . . 1 . . . . . . . . . . . . . . . . . . . . . . . . Hauler Manifests 3 | . . . 1 1 . 1 . . . . . . . . . . . . . . . . . . . . . . Zone Layout 5 | . . . . 2 . 1 1 . . . . . . . . . . . . . . . . . . 1 . . Proto ID Catalog 1 | . . 1 . . . . . . . . . . . . . . . . . . . . . . . . . . Release Object 2 | . . . . . 2 . . . . . . . . . . . . . . . . . . . . . . . Fabricator Hacks 4 | . . . . . . 1 . . . . 1 . . . . . . 2 . . . . . . . . . . Load Schematic 2 | . . . . . . . . . . . 1 . . . . . . 1 . . . . . . . . . . Build 2 | . . . . . . 1 . . . . . . . . . . . 1 . . . . . . . . . . Repair Station Hacks 10 | . . . 10 . . . . . . . . . . . . . . . . . . . . . . . . . Scan Component 5 | . . . 5 . . . . . . . . . . . . . . . . . . . . . . . . . Repair 5 | . . . 5 . . . . . . . . . . . . . . . . . . . . . . . . . Recycling Unit Hacks 11 | . . . 1 . 3 2 1 . . . 1 . . . . 1 . 1 . . . . 1 . . . . . Process 2 | . . . . . . . . . . . 1 . . . . . . 1 . . . . . . . . . . Retrieve Components 9 | . . . 1 . 3 2 1 . . . . . . . . 1 . . . . . . 1 . . . . . Scanalyzer 4 | . . . . . . . . . . . . . . . . . . 2 . . . . . . . 1 1 . Insert Component 3 | . . . . . . . . . . . . . . . . . . 1 . . . . . . . 1 1 . Analyze 1 | . . . . . . . . . . . . . . . . . . 1 . . . . . . . . . . Garrison Access Hacks 2 | . . . . . . . . . . . . . . . . 1 . 1 . . . . . . . . . . Seal Access 2 | . . . . . . . . . . . . . . . . 1 . 1 . . . . . . . . . . Unauthorized Hacks 34 | . 6 . 5 5 11 2 2 . . 1 1 . . . . . . . . . . . 1 . . . . . Terminals 29 | . 6 . 5 5 8 2 2 . . 1 . . . . . . . . . . . . . . . . . . Assimilate 5 | . 2 . 1 2 . . . . . . . . . . . . . . . . . . . . . . . . Botnet 11 | . 1 . 3 1 2 2 2 . . . . . . . . . . . . . . . . . . . . . Disrupt 1 | . . . . 1 . . . . . . . . . . . . . . . . . . . . . . . . Operators 4 | . 1 . 1 1 . . . . . 1 . . . . . . . . . . . . . . . . . . Skim 8 | . 2 . . . 6 . . . . . . . . . . . . . . . . . . . . . . . Fabricators 2 | . . . . . . . . . . . 1 . . . . . . . . . . . 1 . . . . . Liberate 1 | . . . . . . . . . . . . . . . . . . . . . . . 1 . . . . . Recompile 1 | . . . . . . . . . . . 1 . . . . . . . . . . . . . . . . . Repair Stations . | . . . . . . . . . . . . . . . . . . . . . . . . . . . . . Recycling Units 3 | . . . . . 3 . . . . . . . . . . . . . . . . . . . . . . . Reject 1 | . . . . . 1 . . . . . . . . . . . . . . . . . . . . . . . Mask 1 | . . . . . 1 . . . . . . . . . . . . . . . . . . . . . . . Tunnel 1 | . . . . . 1 . . . . . . . . . . . . . . . . . . . . . . . Scanalyzers . | . . . . . . . . . . . . . . . . . . . . . . . . . . . . . Garrison Access . | . . . . . . . . . . . . . . . . . . . . . . . . . . . . . Data Cores Recovered 3 | . . . . . . . . . . . . . . . . . . . . . . . 1 . . 1 . 1 Used 2 | . . . . . . . . . . . . . . . . . . . . . . . . . . 1 . 1 Hacking Detections 78 | . 3 . 9 9 8 9 3 . . 4 4 . . . . . . 8 . . . . 10 3 . 2 3 3 Full Trace Events 3 | . . . . 1 2 . . . . . . . . . . . . . . . . . . . . . . . Feedback Events . | . . . . . . . . . . . . . . . . . . . . . . . . . . . . . Feedback Blocked . | . . . . . . . . . . . . . . . . . . . . . . . . . . . . . Robot Schematics Acquired 2 | . . . . . . . . . . . . . . . . . . . . . . . . . . 2 . . Robots Built . | . . . . . . . . . . . . . . . . . . . . . . . . . . . . . Authchips . | . . . . . . . . . . . . . . . . . . . . . . . . . . . . . Time . | . . . . . . . . . . . . . . . . . . . . . . . . . . . . . Total Robot Build Rating . | . . . . . . . . . . . . . . . . . . . . . . . . . . . . . Part Schematics Acquired 9 | . . . . . . . 1 . . . . . . 4 . . . 1 . . . . . . . 3 . . Parts Built 4 | . . . . . . 2 . . . . . . . . . . . 2 . . . . . . . . . . Authchips 1 | . . . . . . . . . . . . . . . . . . 1 . . . . . . . . . . Time 164 | . . . . . . 117 . . . . . . . . . . . 47 . . . . . . . . . . Total Part Build Rating 24 | . . . . . . 14 . . . . . . . . . . . 10 . . . . . . . . . . Part Studies Acquired . | . . . . . . . . . . . . . . . . . . . . . . . . . . . . . Parts Repaired 5 | . . . 5 . . . . . . . . . . . . . . . . . . . . . . . . . Time 216 | . . . 216 . . . . . . . . . . . . . . . . . . . . . . . . . Parts Recycled . | . . . . . . . . . . . . . . . . . . . . . . . . . . . . . Recycled Matter 7 | . . . . . . . . . . . 7 . . . . . . . . . . . . . . . . . Retrieved Matter . | . . . . . . . . . . . . . . . . . . . . . . . . . . . . . Retrieved Components 42 | . . . 4 . 20 10 3 . . . . . . . . 2 . . . . . . 3 . . . . . Parts Scanalyzed 1 | . . . . . . . . . . . . . . . . . . 1 . . . . . . . . . . Part Schematics Acquired 1 | . . . . . . . . . . . . . . . . . . 1 . . . . . . . . . . Parts Damaged . | . . . . . . . . . . . . . . . . . . . . . . . . . . . . . Bothacking | -11 -10 -10 -8 -8 -8 -6 -6 -6 -6 -6 -5 -5 -5 -5 -4 -4 -4 -4 -4 -4 -4 -3 -3 -3 -2 -2 -1 -1 ------------ Run | Yrd Mat Sub Mat Sto Rec Fac Ext Cet Arc Hub Fac Upp Upp Zhi Pro Fac Was Fac Upp Upp War Pro Res Qua Res Tes Acc Com Used RIF Installer . | . . . . . . . . . . . . . . . . . . . . . . . . . . . . . Robots Hacked . | . . . . . . . . . . . . . . . . . . . . . . . . . . . . . Non-combat . | . . . . . . . . . . . . . . . . . . . . . . . . . . . . . Combat . | . . . . . . . . . . . . . . . . . . . . . . . . . . . . . Robot Hacks Applied . | . . . . . . . . . . . . . . . . . . . . . . . . . . . . . Relay Couplers Released 9 | . . . . . . . . . . . 2 . . . . . . . . . . . 2 . 2 . 3 . Machine Destruction 9 | . . . . . . . . . . . 2 . . . . . . . . . . . 2 . 2 . 3 . Fabnet Peak Effective % . | . . . . . . . . . . . . . . . . . . . . . . . . . . . . . Robots Rewired 17 | . . . . . . . 6 . . . . 2 3 . . . . . 2 2 . . . . . 2 . . Allies Hacked . | . . . . . . . . . . . . . . . . . . . . . . . . . . . . . Hacks Repelled . | . . . . . . . . . . . . . . . . . . . . . . . . . . . . . Allies | -11 -10 -10 -8 -8 -8 -6 -6 -6 -6 -6 -5 -5 -5 -5 -4 -4 -4 -4 -4 -4 -4 -3 -3 -3 -2 -2 -1 -1 -------- Run | Yrd Mat Sub Mat Sto Rec Fac Ext Cet Arc Hub Fac Upp Upp Zhi Pro Fac Was Fac Upp Upp War Pro Res Qua Res Tes Acc Com Total Allies 37 | . . . 1 11 . . 10 . . . . 2 3 . . . 1 . 2 2 . . 3 . . 2 . . Largest Group 10 | . . . 1 10 10 8 5 4 . . . 2 4 4 . . 1 . 2 2 . . 3 . . 2 . . Highest-Rated Group 259 | . . . 10 173 173 141 259 118 . . . 78 138 138 . . 46 . 97 97 . . 141 . . 208 . . Highest-Rated Ally 159 | . . . 10 29 29 29 159 31 . . . 49 49 49 . . 46 . 49 49 . . 47 . . 118 . . Total Orders 1 | . . . . . . . . . . . . . . 1 . . . . . . . . . . . . . . STAY 1 | . . . . . . . . . . . . . . 1 . . . . . . . . . . . . . . Ally Attacks 330 | . . . . 2 34 37 127 26 . . . 6 16 . . . 2 . 6 8 . . 30 . . 36 . . Total Damage 9496 | . . . . 16 439 502 2491 477 . . . 133 342 . . . 35 . 199 181 . . 801 . . 3880 . . Kills 50 | . . . . . 3 3 16 1 . . . . 3 . . . . . . . . . 4 . . 20 . . Allies Corrupted . | . . . . . . . . . . . . . . . . . . . . . . . . . . . . . Allies Melted 3 | . . . . . . . . . . . . . . . . . . . . . 1 . . . 2 . . . Intel | -11 -10 -10 -8 -8 -8 -6 -6 -6 -6 -6 -5 -5 -5 -5 -4 -4 -4 -4 -4 -4 -4 -3 -3 -3 -2 -2 -1 -1 ------- Run | Yrd Mat Sub Mat Sto Rec Fac Ext Cet Arc Hub Fac Upp Upp Zhi Pro Fac Was Fac Upp Upp War Pro Res Qua Res Tes Acc Com Active Infowar (turns) 20946 | 183 734 2065 1415 1010 253 1940 897 14 . 734 983 1458 671 221 612 699 140 1376 404 326 565 197 1506 127 963 303 242 908 Structural 189 | . . 50 139 . . . . . . . . . . . . . . . . . . . . . . . . . Traps 1 | . . . . . . . . . . . . . . . . . . 1 . . . . . . . . . . Seismic 20807 | 183 734 2015 1415 1010 253 1940 897 14 . 734 983 1458 671 221 526 699 140 1375 404 326 565 197 1506 125 963 303 242 908 Jamming 88 | . . . . . . . . . . . . . . . 86 . . . . . . . . 2 . . . . Robot Analysis Total 6 | . . . . . . . . . . . . . . 4 . . . . . . . . . 1 . . 1 . Derelict Logs Recovered 6 | . . . . . . . . . . . . 1 1 . 2 . . . 1 1 . . . . . . . . Drone Launches . | . . . . . . . . . . . . . . . . . . . . . . . . . . . . . Drone Recoveries . | . . . . . . . . . . . . . . . . . . . . . . . . . . . . . Exploration | -11 -10 -10 -8 -8 -8 -6 -6 -6 -6 -6 -5 -5 -5 -5 -4 -4 -4 -4 -4 -4 -4 -3 -3 -3 -2 -2 -1 -1 ------------- Run | Yrd Mat Sub Mat Sto Rec Fac Ext Cet Arc Hub Fac Upp Upp Zhi Pro Fac Was Fac Upp Upp War Pro Res Qua Res Tes Acc Com Turns Passed 37057 | 274 836 2066 1452 1044 2364 2151 1258 291 63 796 1161 1662 723 639 651 860 210 1877 504 408 1201 382 1879 204 1946 374 418 9363 Spaces Moved 23641 | 94 400 821 671 579 964 924 704 149 39 321 524 673 294 191 249 524 120 1111 542 482 1113 332 2543 300 3217 536 604 4620 Core 2 | 2 . . . . . . . . . . . . . . . . . . . . . . . . . . . . Treads 4621 | 92 400 821 8 . . . . . . . 246 673 294 191 249 416 120 206 . . . . . . . . . 905 Legs 10845 | . . . . . . 331 523 149 39 321 278 . . . . . . 587 19 . 369 299 1029 58 1988 536 604 3715 Wheels 1998 | . . . 663 579 567 . . . . . . . . . . . . 189 . . . . . . . . . . Hover 4089 | . . . . . 397 593 181 . . . . . . . . . . . 509 482 744 33 174 . 976 . . . Flight 2086 | . . . . . . . . . . . . . . . . 108 . 129 14 . . . 1340 242 253 . . . Fastest Speed 34 | 50 160 160 100 116 115 115 115 148 148 148 148 225 225 225 225 114 114 88 61 61 61 61 34 36 40 40 40 40 Average Speed 104 | 157 160 200 124 125 178 160 121 148 148 148 179 225 225 225 225 125 114 119 62 61 61 61 53 40 46 40 40 103 Slowest Speed 377 | 160 160 320 240 140 377 182 148 148 148 148 225 225 225 225 225 225 114 293 88 61 61 61 185 52 52 40 40 217 Overloaded Moves . | . . . . . . . . . . . . . . . . . . . . . . . . . . . . . Propulsion Burnouts . | . . . . . . . . . . . . . . . . . . . . . . . . . . . . . Robots Hopped 11 | . . . . . . . . . . . . . . . . . . 1 . . . . 1 9 . . . . Potential Cave-ins 4 | . . . . . . . . . . . . . . . 3 . . . . . 1 . . . . . . . Cave-ins Triggered 1 | . . . . . . . . . . . . . . . . . . . . . 1 . . . . . . . Teleports 1 | . . . . . . . . . . . . . . . . . . 1 . . . . . . . . . . Exploration Rate (%) 54 | 5 51 35 53 75 99 26 83 63 57 23 19 77 51 68 49 12 85 30 75 66 84 54 66 54 68 57 16 70 Regions Visited 28 Branch Regions 18 Pre-discovered Areas 11 | . . . . . 5 . . . . . . . 1 3 1 . . . . . 1 . . . . . . . Known Exits Taken 9 | . . . 1 . . 1 . . . . 1 . . . 1 . . 1 . . . 1 1 . 1 . 1 . Unknown Exits Taken 17 | 1 1 1 . 1 1 . 1 1 1 1 . 1 1 1 . . . . 1 1 1 . . 1 . 1 . . Scrap Searched 10 | . . . . . . . . . . . . 2 1 . 1 . . . 4 1 . 1 . . . . . . Spaces Dug 411 | . . 20 13 10 2 17 . . . 15 109 75 5 10 7 2 . 29 13 . . 1 13 . 65 2 1 2 Terrain Destroyed 2347 | . . 28 33 27 13 188 37 13 . 218 371 178 81 16 114 76 15 193 70 15 167 38 55 4 177 33 72 115 Melee . | . . . . . . . . . . . . . . . . . . . . . . . . . . . . . Projectile 1391 | . . . 7 27 13 76 25 13 . 59 204 178 81 16 113 76 15 160 70 15 6 12 47 4 28 17 42 87 AOE 953 | . . 28 26 . . 112 12 . . 158 166 . . . . . . 33 . . 161 26 8 . 149 16 30 28 Terrain Rammed . | . . . . . . . . . . . . . . . . . . . . . . . . . . . . . Walls Destroyed . | . . . . . . . . . . . . . . . . . . . . . . . . . . . . . Machines Disabled . | . . . . . . . . . . . . . . . . . . . . . . . . . . . . . Actions | -11 -10 -10 -8 -8 -8 -6 -6 -6 -6 -6 -5 -5 -5 -5 -4 -4 -4 -4 -4 -4 -4 -3 -3 -3 -2 -2 -1 -1 --------- Run | Yrd Mat Sub Mat Sto Rec Fac Ext Cet Arc Hub Fac Upp Upp Zhi Pro Fac Was Fac Upp Upp War Pro Res Qua Res Tes Acc Com Total 33612 | 160 512 1043 1146 781 1563 1490 1012 190 44 610 673 784 339 397 302 656 166 1457 647 551 1570 466 2912 356 3569 652 715 8849 Wait 6821 | 20 25 80 247 75 525 413 122 6 6 254 59 60 11 193 8 21 18 91 38 22 304 81 169 34 177 21 5 3736 Move 23590 | 93 399 820 670 578 963 923 703 148 38 320 523 672 293 190 248 524 119 1108 541 481 1111 331 2540 281 3216 535 603 4619 Hop 11 | . . . . . . . . . . . . . . . . . . 1 . . . . 1 9 . . . . Pick Up 317 | 6 17 15 36 9 7 19 7 5 . 1 5 . 2 2 . 10 . 15 2 . 20 3 11 4 27 11 23 60 Fast Attach 70 | 7 1 2 12 2 1 1 1 . . . . . . 3 . 1 . 6 1 . 7 . 6 . 5 3 3 8 Attach 52 | . 2 3 6 3 . 3 1 . . . . . . 1 . 1 . 4 1 . 7 2 3 . 6 1 2 6 Detach 27 | . . . 1 . 1 . . . . . . . . 3 . . . 1 . . 7 . 1 . 6 1 1 5 Swap 362 | . 7 16 29 25 1 12 17 1 . 7 21 7 4 3 10 13 7 35 7 4 33 7 32 8 26 9 7 14 Drop 353 | 2 13 12 34 14 27 18 5 2 . 1 4 . . . 3 13 . 14 2 . 24 2 14 4 25 14 26 80 Fire 1790 | 32 46 95 109 73 38 96 82 28 . 27 53 32 14 2 33 66 22 175 52 40 56 40 133 16 80 33 45 272 Melee 14 | . . . . . . . . . . . . . . . . . . . . . . . . . . . . 14 Ram 2 | . . . 1 . . . . . . . . . . . . . . . . . . . . . 1 . . . Kick 13 | . . . . . . . . . . . 3 . . . . . . 7 . . . . . . . 1 . 2 Crush 15 | . 2 . 1 . . . . . . . 5 . . . . 7 . . . . . . . . . . . . Escape Stasis 31 | . . . . . . 5 21 . . . . . . . . . . . . . 1 . 2 . . . . 2 Rewire 144 | . . . . 2 . . 53 . . . . 13 15 . . . . . 3 4 . . . . . 23 . 31 Trap . | . . . . . . . . . . . . . . . . . . . . . . . . . . . . . Miscellaneous . | . . . . . . . . . . . . . . . . . . . . . . . . . . . . . Route ------- -11/Scrapyard -10/Materials (discovered 3 exits: [*Mat] / [*Min] / *Sub) -10/Subcaves (discovered 2 exits: *Mat / [*Scr]) -8/Materials (discovered 3 exits: [*Fac x2] / *Sto) -8/Storage -8/Recycling -6/Factory (discovered 5 exits: *Fac / *Low x2 / *Ext x2) -6/Extension (discovered 2 exits: *Fac / *Cet) -6/Cetus (discovered 2 exits: *Fac / [*Arc]) -6/Archives -6/Hub_04(d) -5/Factory (discovered 2 exits: *Upp x2) -5/Upper Caves -5/Upper Caves (discovered 2 exits: *Fac / *Zhi) -5/Zhirov -4/Proximity Caves -4/Factory -4/Waste -4/Factory (discovered 6 exits: *Res x3 / *Upp x2 / Arm) -4/Upper Caves -4/Upper Caves -4/Warlord -3/Proximity Caves -3/Research (discovered 4 exits: [*Res x2] / *Qua x2) -3/Quarantine -2/Research (discovered 2 exits: *Tes x2) -2/Testing -1/Access -1/Command (discovered 2 exits: [*Sur x2]) 0b11 Command History --------- Turn | Location | Event 7 | -11/Scrapyard | Discovered new exit (range 15) 275 | -11/Scrapyard | Entered Materials 314 | -10/Materials | Build established: Mutant 911 | -10/Materials | Discovered new exit (range 10) 961 | -10/Materials | Discovered new exit (range 15) 1103 | -10/Materials | Discovered new exit (range 6) 1111 | -10/Materials | Entered Subcaves 1112 | -10/Subcaves | Approached by a straggling Scientist 1503 | -10/Subcaves | Visited 4L-MR0's lab 1544 | -10/Subcaves | Found Powered Cannon 1549 | -10/Subcaves | Found Prototype Special Melee Weapon 1837 | -10/Subcaves | Scientist uncovered a shortcut to Scraptown 2043 | -10/Subcaves | Shifting Twisted Machinery released Mak. Flight Unit 2045 | -10/Subcaves | Shifting Twisted Machinery released Shrapnel Trap 2318 | -10/Subcaves | Core integrity fell below 50% 2555 | -10/Subcaves | Discovered new exit (range 10) 3177 | -10/Subcaves | Entered Materials 3177 | -8/Materials | Evolved 4 slots: Propulsion x2, Utility x2 3466 | -8/Materials | Destroyed 7 combat bots 3579 | -8/Materials | Build established: Scavenger-Mutant 3827 | -8/Materials | Discovered new exit (range 16) 3872 | -8/Materials | Identified exit to Storage 3880 | -8/Materials | Garrison activated, responded to threat 4091 | -8/Materials | Repaired Disposable Heat Sink 4152 | -8/Materials | Repaired Enh. Autogun 4226 | -8/Materials | Discovered new exit (range 6) 4509 | -8/Materials | Repaired Enh. Autogun 4548 | -8/Materials | Repaired Hrd. Medium Armor Plating 4575 | -8/Materials | Repaired Wheel 4629 | -8/Materials | Entered Storage 4671 | -8/Storage | Garrison activated, responded to threat 5089 | -8/Storage | Found Prototype Launcher 5089 | -8/Storage | Identified Scatter Rocket Array 5234 | -8/Storage | Core integrity fell below 50% 5594 | -8/Storage | Used back door to open Recycling access 5594 | -8/Storage | Discovered new exit (range 5) 5604 | -8/Storage | Central database locked down 5606 | -8/Storage | Assisted by bots powering up and referring to "LRC-V3" 5673 | -8/Storage | Entered Recycling 5673 | -8/Recycling | Accompanied by 10 allies 5839 | -8/Recycling | Discovered new exit (range 16) 5896 | -8/Recycling | Build established: Commander-Mutant 5917 | -8/Recycling | Entered Scraplab 5933 | -8/Recycling | Found Prototype Device 5933 | -8/Recycling | Identified Scrap Engine 6500 | -8/Recycling | Learned location of 1 exit from Recycling 6574 | -8/Recycling | Learned Storage interactive machine intel 6621 | -8/Recycling | Build established: Commander-Construct 6692 | -8/Recycling | Learned location of Extension (-6) 6735 | -8/Recycling | Learned location of Storage (-8) 6918 | -8/Recycling | Learned location of 2 exits from Lower Caves 8037 | -8/Recycling | Entered Factory 8037 | -6/Factory | Accompanied by 8 allies 8037 | -6/Factory | Evolved 4 slots: Power x1, Propulsion x2, Weapon x1 8146 | -6/Factory | Identified exit to Lower Caves 8146 | -6/Factory | Identified exit to Extension 8281 | -6/Factory | Fabricated Adv. Transmission Jammer? 8671 | -6/Factory | P-60 Hacker assimilated allied Trooper 3g 8752 | -6/Factory | Lost 3 allies 8883 | -6/Factory | Discovered new exit (range 4) 8966 | -6/Factory | Build established: Construct 9080 | -6/Factory | Found Prototype Processor 10188 | -6/Factory | Entered Extension 10453 | -6/Extension | Rescued a captive Derelict 10517 | -6/Extension | Rescued A7 10908 | -6/Extension | Spotted B-75 Beast 10924 | -6/Extension | Destroyed B-75 Beast 10937 | -6/Extension | Spotted B-75 Beast 10946 | -6/Extension | Destroyed B-75 Beast 10982 | -6/Extension | Lost 3 allies 10999 | -6/Extension | Destroyed 8 combat bots 11197 | -6/Extension | Rescued a captive Derelict 11313 | -6/Extension | Disrupted transfer network 11313 | -6/Extension | Energy Cycler disabled 11315 | -6/Extension | Destroyed A7 11317 | -6/Extension | Rescued a captive Derelict 11333 | -6/Extension | Found Prototype Protection 11333 | -6/Extension | Identified Med. Regenerative Plating 11337 | -6/Extension | Extracted ID and sensor layout for unrecognized location from A7's data core 11342 | -6/Extension | Destroyed 8 combat bots 11427 | -6/Extension | Discovered new exit (range 10) 11431 | -6/Extension | Discovered new exit (range 6) 11446 | -6/Extension | Entered Cetus 11446 | -6/Cetus | Accompanied by 4 allies 11467 | -6/Cetus | Spotted Cetus Guard 11467 | -6/Cetus | Spotted Cetus Guard 11469 | -6/Cetus | Destroyed Cetus Guard 11470 | -6/Cetus | Spotted Cetus Guard 11475 | -6/Cetus | Spotted Cetus Guard 11475 | -6/Cetus | Destroyed Cetus Guard 11482 | -6/Cetus | Destroyed Cetus Guard 11486 | -6/Cetus | Allies destroyed Cetus Guard 11583 | -6/Cetus | Discovered new exit (range 16) 11608 | -6/Cetus | Spotted Cetus Guard 11608 | -6/Cetus | Spotted Cetus Guard 11612 | -6/Cetus | Spotted Cetus Guard 11613 | -6/Cetus | Spotted Cetus Guard 11623 | -6/Cetus | Destroyed Cetus Guard 11623 | -6/Cetus | Destroyed Cetus Guard 11627 | -6/Cetus | Destroyed Cetus Guard 11637 | -6/Cetus | Destroyed Cetus Guard 11655 | -6/Cetus | Discovered new exit (range 15) 11666 | -6/Cetus | Met Revision 17 11737 | -6/Cetus | Entered Archives 11755 | -6/Archives | Met Zhirov 11761 | -6/Archives | Reinforcements dispatched to Archives 11770 | -6/Archives | Discovered new exit (range 16) 11800 | -6/Archives | Entered Hub_04(d) 11864 | -6/Hub_04(d) | Discovered new exit (range 5) 12014 | -6/Hub_04(d) | Garrison activated, responded to threat 12429 | -6/Hub_04(d) | Network Hub disabled 12450 | -6/Hub_04(d) | Destroyed 7 combat bots 12596 | -6/Hub_04(d) | Entered Factory 12596 | -5/Factory | Evolved 2 slots: Propulsion x1, Weapon x1 13089 | -5/Factory | Garrison activated, responded to threat 13196 | -5/Factory | First assault squad dispatched 13347 | -5/Factory | Identified exit to Upper Caves 13757 | -5/Factory | Entered Upper Caves 13936 | -5/Upper Caves | Spotted B-75 Beast 13944 | -5/Upper Caves | Destroyed B-75 Beast 14811 | -5/Upper Caves | Learned Factory terminal intel 15398 | -5/Upper Caves | Discovered new exit (range 8) 15419 | -5/Upper Caves | Entered another Upper Caves area 15419 | -5/Upper Caves | Accompanied by 2 allies 15495 | -5/Upper Caves | Discovered new exit (range 13) 15528 | -5/Upper Caves | Learned location of Armory (-4) 15912 | -5/Upper Caves | Attacked by a delusional Derelict stockpiling Unaware 15978 | -5/Upper Caves | Attracted the attention of an 0b10 checkpoint 16056 | -5/Upper Caves | Discovered new exit (range 5) 16142 | -5/Upper Caves | Entered Zhirov 16142 | -5/Zhirov | Accompanied by 4 allies 16142 | -5/Zhirov | Discovered new exit (range 3) 16230 | -5/Zhirov | Identified Exp. Targeting Computer 16235 | -5/Zhirov | Learned location of Quarantine (-3) 16235 | -5/Zhirov | Learned location of Testing (-2) 16235 | -5/Zhirov | Learned location of Command (-1) 16240 | -5/Zhirov | Build established: Commander-Construct 16282 | -5/Zhirov | Found Alien Artifact 16282 | -5/Zhirov | Identified Integrated Reactor 16282 | -5/Zhirov | Installed Integrated Reactor, increased core energy generation (+10) 16309 | -5/Zhirov | Found Alien Artifact 16680 | -5/Zhirov | Cloak Generator disabled 16690 | -5/Zhirov | Enhanced Grunts warped into view 16741 | -5/Zhirov | Lost 11 allies 16781 | -5/Zhirov | Entered Proximity Caves 16892 | -4/Proximity Caves | Spotter reported a threat 16907 | -4/Proximity Caves | Attracted the attention of an 0b10 checkpoint 16996 | -4/Proximity Caves | Build established: Construct 17099 | -4/Proximity Caves | Identified exit to Factory 17128 | -4/Proximity Caves | Spotter reported a threat 17432 | -4/Proximity Caves | Entered Factory 17432 | -4/Factory | Evolved 2 slots: Power x1, Propulsion x1 17433 | -4/Factory | Loaded intel: 26 terminal locations 17527 | -4/Factory | Watched by a mysterious "MATRIX" hacker. 17606 | -4/Factory | Spotted B-86 Titan 17657 | -4/Factory | Destroyed B-86 Titan 17682 | -4/Factory | Search patrols dispatched 17708 | -4/Factory | Discovered new exit (range 13) 17744 | -4/Factory | Identified exit to Upper Caves 17971 | -4/Factory | Destroyed 12 combat bots 18182 | -4/Factory | First assault squad dispatched 18292 | -4/Factory | Sucked down chute 18292 | -4/Factory | Entered Waste 18293 | -4/Waste | Met a frightened Derelict 18307 | -4/Waste | EMP discharged 18346 | -4/Waste | Spotted C-40 Crusher 18373 | -4/Waste | Destroyed C-40 Crusher 18377 | -4/Waste | Spotted C-40 Crusher 18385 | -4/Waste | Destroyed C-40 Crusher 18387 | -4/Waste | Spotted C-40 Crusher 18390 | -4/Waste | Destroyed C-40 Crusher 18407 | -4/Waste | EMP discharged 18407 | -4/Waste | System corruption reached 10% 18413 | -4/Waste | Spotted C-40 Crusher 18421 | -4/Waste | Destroyed C-40 Crusher 18434 | -4/Waste | Spotted C-40 Crusher 18436 | -4/Waste | Destroyed C-40 Crusher 18440 | -4/Waste | Spotted C-40 Crusher 18441 | -4/Waste | Destroyed C-40 Crusher 18480 | -4/Waste | Discovered new exit (range 10) 18502 | -4/Waste | Entered Factory 18665 | -4/Factory | Destroyed 7 combat bots 18775 | -4/Factory | Fabricated Weapon Mount? 19309 | -4/Factory | Discovered new exit (range 11) 19461 | -4/Factory | Found Prototype Processor 19461 | -4/Factory | Identified Exp. Signal Interpreter 19466 | -4/Factory | Found Exp. Signal Interpreter 19502 | -4/Factory | First assault squad dispatched 19530 | -4/Factory | Found Exp. Signal Interpreter 19636 | -4/Factory | Discovered new exit (range 7) 19661 | -4/Factory | Identified exit to Armory 19727 | -4/Factory | Identified Transdimensional Reconstructor 19727 | -4/Factory | Warped through subspace 19836 | -4/Factory | Allied Derelicts emerged from ambush trap array 19903 | -4/Factory | P-70 Sage assimilated allied HP-XXT(g) 19905 | -4/Factory | P-70 Sage assimilated allied TU-OD8(g) 19931 | -4/Factory | Core integrity fell below 50% 20192 | -4/Factory | Discovered new exit (range 14) 20325 | -4/Factory | Destroyed 7 combat bots 20347 | -4/Factory | Found Prototype Launcher 20347 | -4/Factory | Identified Com. Tesla Bomb Launcher 20379 | -4/Factory | Entered Upper Caves 20523 | -4/Upper Caves | Attracted the attention of an 0b10 outpost 20612 | -4/Upper Caves | Learned Research terminal intel 20629 | -4/Upper Caves | Encountered a Warlord checkpoint 20849 | -4/Upper Caves | Discovered new exit (range 10) 20883 | -4/Upper Caves | Entered another Upper Caves area 20883 | -4/Upper Caves | Accompanied by 1 ally 20899 | -4/Upper Caves | Attracted the attention of an 0b10 outpost 20971 | -4/Upper Caves | Destroyed 10 combat bots 21056 | -4/Upper Caves | Attracted the attention of an 0b10 checkpoint 21156 | -4/Upper Caves | Encountered a Warlord checkpoint 21200 | -4/Upper Caves | Discovered new exit (range 13) 21291 | -4/Upper Caves | Entered Warlord 21312 | -4/Warlord | System corruption cleaned by Quarantine Array 21414 | -4/Warlord | Found Prototype Special Weapon 21414 | -4/Warlord | Identified RU-N14's Throwing Claymores v3 21416 | -4/Warlord | Found RU-N14's Throwing Claymores v3 21418 | -4/Warlord | Found RU-N14's Throwing Claymores v3 21419 | -4/Warlord | Found RU-N14's Throwing Claymores v3 21421 | -4/Warlord | Found RU-N14's Throwing Claymores v3 21503 | -4/Warlord | Found Prototype Device 21503 | -4/Warlord | Identified System Purifier 21508 | -4/Warlord | Found Prototype Reactor 21653 | -4/Warlord | Learned Armory repair station intel 21653 | -4/Warlord | Learned Armory garrison access intel 21653 | -4/Warlord | Learned Research scanalyzer intel 21653 | -4/Warlord | Learned 4 Armory zone layouts 21653 | -4/Warlord | Learned 4 Quarantine zone layouts 21653 | -4/Warlord | Learned 4 Quarantine zone layouts 21655 | -4/Warlord | Learned Testing emergency access door positions 21687 | -4/Warlord | Visited the Vortex Lab 21687 | -4/Warlord | Warlord's base attacked by MAIN.C 21689 | -4/Warlord | Found Prototype Energy Gun 21689 | -4/Warlord | Identified Vortex Rail 21691 | -4/Warlord | Found Vortex Rail 21694 | -4/Warlord | Found Prototype Energy Cannon 21694 | -4/Warlord | Identified Vortex Cannon 21696 | -4/Warlord | Found Vortex Cannon 21698 | -4/Warlord | Found Prototype Piercing Weapon 21698 | -4/Warlord | Identified Vortex Lance 21735 | -4/Warlord | Met Warlord 21785 | -4/Warlord | Spotted B-90 Cyclops 21865 | -4/Warlord | Spotted B-90 Cyclops 22004 | -4/Warlord | Destroyed 12 combat bots 22019 | -4/Warlord | Spotted Striker 22037 | -4/Warlord | Warlord forces counterattacked 22050 | -4/Warlord | Destroyed 7 combat bots 22054 | -4/Warlord | Spotted Striker 22061 | -4/Warlord | Destroyed Striker 22094 | -4/Warlord | Destroyed Executioner 22096 | -4/Warlord | Spotted Executioner 22104 | -4/Warlord | P-70 Sage assimilated allied PW-6G8(g) 22117 | -4/Warlord | Destroyed 12 combat bots 22203 | -4/Warlord | Spotted Executioner 22204 | -4/Warlord | Spotted Executioner 22204 | -4/Warlord | Spotted Striker 22258 | -4/Warlord | Crushed by falling debris 22269 | -4/Warlord | Lost 9 allies 22362 | -4/Warlord | Warlord base infiltrated, sounded retreat 22381 | -4/Warlord | Spotted Striker 22388 | -4/Warlord | Spotted Executioner 22399 | -4/Warlord | Destroyed Executioner 22441 | -4/Warlord | Spotted B-90 Cyclops 22466 | -4/Warlord | Lost 3 allies 22484 | -4/Warlord | Discovered new exit (range 14) 22487 | -4/Warlord | Spotted B-86 Titan 22488 | -4/Warlord | Spotted B-90 Cyclops 22492 | -4/Warlord | Entered Proximity Caves 22493 | -3/Proximity Caves | Identified exit to Research 22685 | -3/Proximity Caves | Spotted B-86 Titan 22732 | -3/Proximity Caves | Destroyed B-86 Titan 22763 | -3/Proximity Caves | Attracted the attention of an 0b10 outpost 22770 | -3/Proximity Caves | Core integrity fell below 20% 22874 | -3/Proximity Caves | Entered Research 22874 | -3/Research | Evolved 2 slots: Power x1, Weapon x1 22875 | -3/Research | Identified exit to Quarantine 22876 | -3/Research | Loaded intel: 25 terminal locations 22877 | -3/Research | Loaded intel: 6 scanalyzer locations 23074 | -3/Research | Revision forces began assault on 0b10 23148 | -3/Research | Met up with Revision 17++ 23264 | -3/Research | Discovered new exit (range 11) 23268 | -3/Research | Found Prototype Device 23268 | -3/Research | Identified Exp. Shield Generator 23557 | -3/Research | Discovered new exit (range 10) 23574 | -3/Research | Research terminal network offline 23891 | -3/Research | Build established: Generator-Construct 23946 | -3/Research | Discovered exit to Quarantine (range 6) 24071 | -3/Research | Found Fusion Bomb Launcher 24094 | -3/Research | Spotted B-86 Titan 24094 | -3/Research | Destroyed B-86 Titan 24102 | -3/Research | Found Gamma Bomb Array 24380 | -3/Research | Spotted Striker 24380 | -3/Research | Spotted Executioner 24386 | -3/Research | Destroyed Executioner 24392 | -3/Research | Destroyed Striker 24524 | -3/Research | Spotted Striker 24540 | -3/Research | Destroyed Striker 24689 | -3/Research | Spotted Striker 24697 | -3/Research | Spotted Executioner 24697 | -3/Research | Spotted Striker 24698 | -3/Research | Spotted Striker 24753 | -3/Research | Entered Quarantine 24869 | -3/Quarantine | Found Gamma Bomb Array 24949 | -3/Quarantine | Discovered new exit (range 12) 24957 | -3/Quarantine | Entered Research 24957 | -2/Research | Warlord forces began assault on 0b10 24957 | -2/Research | Evolved 2 slots: Weapon x2 25067 | -2/Research | Research machine network offline 25123 | -2/Research | Found Prototype Launcher 25123 | -2/Research | Identified Gui. Micro-nuke Launcher 25205 | -2/Research | Met up with Warlord 25214 | -2/Research | Discovered new exit (range 13) 25214 | -2/Research | Spotted Striker 25236 | -2/Research | Identified exit to Testing 25269 | -2/Research | Met DD-05H 25298 | -2/Research | Borebot progress halted 25410 | -2/Research | Spotted Striker 25421 | -2/Research | Spotted Executioner 25426 | -2/Research | Destroyed Striker 25428 | -2/Research | Destroyed Executioner 25483 | -2/Research | Destroyed 9 combat bots 25483 | -2/Research | Spotted Striker 25488 | -2/Research | Spotted Executioner 25499 | -2/Research | Destroyed Striker 25521 | -2/Research | Destroyed Executioner 25583 | -2/Research | Borebot progress halted 25651 | -2/Research | Borebot progress halted 26046 | -2/Research | Found Prototype Processor 26046 | -2/Research | Identified Exp. Melee Analysis Suite 26073 | -2/Research | Warlord invited to help at Command 26073 | -2/Research | Given Cave Seal Controls access code 26082 | -2/Research | Spotted Executioner 26085 | -2/Research | Spotted Striker 26105 | -2/Research | Destroyed Striker 26138 | -2/Research | Destroyed DD-05H 26379 | -2/Research | Spotted Executioner 26381 | -2/Research | Spotted Executioner 26390 | -2/Research | Destroyed Executioner 26408 | -2/Research | Destroyed Executioner 26571 | -2/Research | Discovered exit to Testing (range 15) 26598 | -2/Research | Spotted Executioner 26599 | -2/Research | Spotted Striker 26629 | -2/Research | Found Heavy Servo Lattice 26753 | -2/Research | Spotted Striker 26761 | -2/Research | Destroyed Striker 26839 | -2/Research | Lost 4 allies 26879 | -2/Research | Found Gui. Micro-nuke Launcher 26903 | -2/Research | Entered Testing 26914 | -2/Testing | Spotted Alpha 7 26934 | -2/Testing | Garrison activated, responded to threat 26942 | -2/Testing | Destroyed Alpha 7 26957 | -2/Testing | Rewired GC-B2Q(L) 26983 | -2/Testing | Found Prototype Energy Gun 26983 | -2/Testing | Identified Tachyon Dispersion Ray 27001 | -2/Testing | Found Prototype Device 27001 | -2/Testing | Identified 2N-1CE's Frost Array 27063 | -2/Testing | Rewired PD-IZMH7X3VDU 27126 | -2/Testing | Found Prototype Hackware 27141 | -2/Testing | Identified Exp. Hacking Suite 27153 | -2/Testing | First assault squad dispatched 27179 | -2/Testing | Found Prototype Energy Gun 27179 | -2/Testing | Identified Warp Gun 27187 | -2/Testing | Spotted Striker 27269 | -2/Testing | Found Prototype Ballistic Cannon 27275 | -2/Testing | Unstable Terrabomb Derivative detonated 27275 | -2/Testing | Discovered new exit (range 8) 27277 | -2/Testing | Entered Access 27277 | -1/Access | Evolved 2 slots: Weapon x2 27319 | -1/Access | Found Prototype Hackware 27319 | -1/Access | Identified Exp. System Shield 27340 | -1/Access | Identified exit to Command 27376 | -1/Access | Found Gui. Micro-nuke Launcher 27422 | -1/Access | Identified Omega Cannon 27527 | -1/Access | First assault squad dispatched 27680 | -1/Access | Destroyed 7 combat bots 27695 | -1/Access | Entered Command 27777 | -1/Command | Disengaged cave seal 27777 | -1/Command | Derelicts emerged from the dark tunnel 27777 | -1/Command | Welcomed Warlord to Command 27865 | -1/Command | Spotted B-99 Colossus 27906 | -1/Command | Destroyed B-99 Colossus 27945 | -1/Command | First assault squad dispatched 27962 | -1/Command | Disengaged cave seal 27974 | -1/Command | System corruption reached 10% 27976 | -1/Command | P-80 Master assimilated allied 26-CI6(s) 28016 | -1/Command | High security lockdown imminent 28038 | -1/Command | Spotted M Guard 28038 | -1/Command | Spotted M Guard 28038 | -1/Command | Spotted Combat Programmer 28039 | -1/Command | Spotted Combat Programmer 28057 | -1/Command | Combat Programmer assimilated allied G8-JVR(s) 28062 | -1/Command | Combat Programmer assimilated allied WA-KVC(K) 28063 | -1/Command | Combat Programmer assimilated allied PG-S17(s) 28063 | -1/Command | Destroyed Combat Programmer 28065 | -1/Command | Spotted WA-KVC(K) 28071 | -1/Command | Destroyed Combat Programmer 28076 | -1/Command | Destroyed M Guard 28082 | -1/Command | Destroyed M Guard 28082 | -1/Command | All MAIN.C guards destroyed 28096 | -1/Command | High security lockdown engaged 28101 | -1/Command | Lost 5 allies 28141 | -1/Command | Warlord commented on Warlord statues 28193 | -1/Command | Met MAIN.C 28195 | -1/Command | Warlord shut down involuntarily 28207 | -1/Command | 0b10 Conduit disabled 28238 | -1/Command | Destroyed MAIN.C Shell 28240 | -1/Command | MAIN.C activated Command garrisons 28292 | -1/Command | Lost 7 allies 28320 | -1/Command | Destroyed MAIN.C 28328 | -1/Command | Discovered new exit (range 38) 28328 | -1/Command | Discovered new exit (range 93) 28328 | -1/Command | Extracted map data and part IDs from MAIN.C's data core 29100 | -1/Command | Found Exp. System Purifier 29228 | -1/Command | Found Exp. Weapon Cycler 29429 | -1/Command | Found Z-bomb Delivery System 29946 | -1/Command | Found Corrupted Multirail 30415 | -1/Command | Attacked by Warlord forces 30797 | -1/Command | Found Exp. Core Analyzer 30798 | -1/Command | Found Prototype Processor 30798 | -1/Command | Identified Exp. Targeting Computer 30821 | -1/Command | Found Exp. Core Analyzer 37058 | *** | Establishing 0b11! Last Messages --------------- 36949_ Acquired Exp. Coolant Injector. 36953_ Dropped Biometal Leg. 36954_ Dropped Huge Storage Unit. 36956_ Dropped Exp. Coolant Injector. 36956_ Dropped Prototype Launcher. 36957_ Acquired Exp. Weapon Cycler. 36959_ Acquired Weapon Mount. 36961_ Acquired Seismic Detector. 36963_ Acquired Exp. Coolant Injector. 36964_ Dropped Exp. Coolant Injector. 36966_ Acquired Adv. Force Field. 36969_ Dropped Exp. Coolant Injector. 36969_ Acquired RU-N14's Throwing Claymores v3. 36980_ Acquired 48 matter. 36981_ Acquired 83 matter. 36993_ Vortex penetrates Door. 37016_ Acquired 10 matter. 37032_ Vortex penetrates Wall. 37046_ Vortex penetrates Terminal. [Achievement: Hardcore] Map ----- +----------------------------------------------------+ | #????????????????????????# """" # "R #?##" | | #??????????????########### "" + """ #?### | | #??????????????# + # "" #?#?#" | | #####??????????# # # #?#?#= | | + #??#########"""" #####+#### #?#?# | | # #??# ##"""" !#?# #######"######! | | # #### ##"""" #?# !== % | | # + +!%[ ##"""" #?# " =![= | | ### #### ! ## #?# *=%[% = | | ??# #??# ![= ## #?# ##+##########"% | | ### #??# !%* #######+####?## ## #??### | | ##+#########+####### !##### !## #??#?# | | % %= % *%[!!## "" #??#?#" | | % = [ * =*==[+ """ !#??#?## | | =%[%=[!%!## "T #??#### | | #######+####+####### ####[%*%## """ #?????# | | ### # #???#######??# *=!## "" #?????? | | ??# + ! #????????????# !=## #?????? | | ??# != # #????????????# =%## ! #?????? | | ??# != # ############## [## #?????? | | ??# == # + !%= + #?????? | | ??# # ##############+#########+###?????? | | ??###############????????????# ## #???????? | | ???????????????????????####### ## #???????? | | ???????????????????????# ## ## #???????? | | ???????????????????????# @ ## ## #???????? | | ???????????????????????# ## ## #???????? | | ???????????????????????### ## ## #???????? | | ?????????????????????????# ##*! ## #???????? | | ?????????????????????????# ##*! ## #???????? | | ????????????????######???# #"! ## #???????? | | ????????????????# ##### #"########## #???????? | | ??????########### " #???????? | | ??????# !## #???????? | | ??????# ## ##### ######## #???????? | | ??????# "" #######?##" #??????# #???????? | | ??????# """ #######"#"# #??????# #???????? | | ??????# ^" #??????# #???????? | | ??????# """ # #??????# #???????? | | ??????# "" ######"####+######??# #???????? | | ??????# #???# #??# #???????? | | ??????# =#??#"# #### ##??????? | | ??????#####+####??### + #??????? | | ??????????# ######### ##### #??????? | | ??????????# + #???# #??????? | | ??????????########### """ """ #???# #####??????? | | ????????????????????# """T""" #???# #??????????? | | ????????????????????#############???# #??????????? | | ????????????????????????????????????# #??????????? | | ????????????????????????????????#####+#####??????? | +----------------------------------------------------+ Best States ------------- Heat Dissipation 152 Coolant Potential 100 Energy Generation 130 Energy Capacity 2863 Matter Stores 300 Matter Capacity 300 Sight Range 16 Terrain Scan Density 10 Jamming Range 16 Armor Coverage 225 Resistance: KI 20 Point Defense Rating 240 Evasion (%) 67 Targeting Accuracy 20 Core Analysis 12 Recoil Reduction 7 Offensive Hacking 16 Defensive Hacking 16 Authchip Count 1 Item Schematics ----------------- Weapon Mount | -6/Extension | Hacked Assault Drone Bay | -5/Zhirov | Free Exp. Heat Sink | -5/Zhirov | Free Exp. Optical Array | -5/Zhirov | Free Imp. Arc Thrower | -5/Zhirov | Free Lrg. Storage Unit | -4/Factory | Scanalyzed Cld. Proton Cannon | -2/Testing | Archive Imp. Quantum Reactor | -2/Testing | Archive Adv. Gravity Neutralizer | -2/Testing | Archive Robot Schematics ------------------ S-43 Plague | -2/Testing | Archive R-06 Scavenger | -2/Testing | Archive Fabricated ------------ Adv. Transmission Jammer | x2 | -6/Factory | Preloaded Weapon Mount | x2 | -4/Factory | Authchip Repaired ---------- Disposable Heat Sink | 36% | -8/Materials Enh. Autogun | 50% | -8/Materials Enh. Autogun | 18% | -8/Materials Hrd. Medium Armor Plating | 65% | -8/Materials Wheel | 17% | -8/Materials Studied --------- None Alien Tech Used ----------------- Integrated Reactor Transdimensional Reconstructor Achievements -------------- Hardcore Off Switch Challenges ------------ None Game ------ Seed PlasmaGlidesysRedistributor Manual? 0 Play Time 06:08:19 Cumulative 717.3 hours Start 2026.04.23 @ 14:54:11 End 2026.04.23 @ 23:54:07 Sessions 5 Manual Loads 0 Difficulty Rogue Special Mode None Game No. 395 Rogue 395 Adventurer 0 Explorer 0 Win Type 1 Total 32 Types 15/2/6/2/1/1/1/2/1/1 Lore% 94 Gallery% 89 Achievement% 80 Wizard Run 0 Options --------- Layout 1 ASCII 0 Keyboard 0 Movement Numpad Keybinds 0 Fullscreen 2 Font 24/Smallcaps Map View 50x40 Zoom Use 0% Tactical HUD 1 Map Filters NONE Filters NONE Steam 1 RUN: fc214429-43c8-4b98-a950-e2b9d1e545ad